Workbook

Sheet Introduction
C3: Low Carbon Fuel Standard Tier 1 CI Calculator for Organic Waste Biomethane (Release Date: 07/01/2025)
C4: The Tier 1 CI Calculator for Organic Waste Biomethane (T1 OW Calculator) offers a simplified interface for calculating the carbon intensity (CI) of biogas derived from organic waste that is upgraded to biomethane and used in a transportation vehicle as compressed natural gas (Bio-CNG), liquified natural gas (Bio-LNG) or re-gasified liquified natural gas (Bio-L-CNG). To begin, navigate to the "Site-Specific Inputs" worksheet and enter all relevant project data. For Tier 1 pathways, a minimum of 3 months of operational data is required. The "Avoided Emissions" worksheet demonstrates how avoided landfilling and composting emissions are assessed. Carbon Intensity (CI) results are provided on the "Pathway Summary" worksheet, along with calculated input results and finished fuel quantities. Pathway-specific Operating Conditions may be added by CARB prior to pathway certification. The "CA-GREET4.0" worksheet contains predefined input values from the CA-GREET4.0 model. Data entered by the applicant are limited to User Input cells (see Color Key below). Additional worksheets may be added to the calculator by the applicant to document and support User Input cell values, but existing worksheets and cells containing Calculated Value or CA-GREET4.0 Input values may not be modified without CARB approval via a Tier 2 pathway. Note: This calculator contains macros that allow the user to hide site-specific input fields that are not relevant to a given pathway. In order for macros to function properly, the "Enable Content" button in Microsoft Excel must be selected upon opening this calculator. In order to ensure that CI calculations reflect the most recent inputs, select "Automatic" calculations from the "Calculation Options" in the "Formulas" toolbar or press F9 (if using Microsoft Excel).
D5: Color Key | F5: LCFS Website Resources
D6: User Input | F6: LCFS Program Overview
D7: Calculated Value | F7: Tier 1 Pathway Calculators and Instruction Manuals
D8: CA-GREET4.0 | F8: Tier 1 Pathway Application Process
D44: `

Sheet Site-Specific Inputs
B2: Section 1: Applicant Information | E2: Section 4: Monthly Operational Data
B3: 1.1 Application Number | F3: Urban Landscaping Waste (ULW) Feedstock | J3: Food Scraps (FS) Feedstock | N3: Recovered Organics (RO) Feedstock | R3: Other Organic Waste (OOW) Feedstock | V3: Biogas | X3: Process Energy | AD3: Tail Gas | AE3: Pipeline Injection
B4: 1.2 Company Name | E4: 4.1 | F4: 4.2 | G4: 4.3 | H4: 4.4 | I4: 4.5 | J4: 4.6 | K4: 4.7 | L4: 4.8 | M4: 4.9 | N4: 4.1 | O4: 4.11 | P4: 4.12 | Q4: 4.13 | R4: 4.14 | S4: 4.15 | T4: 4.16 | U4: 4.17 | V4: 4.18 | W4: 4.19 | X4: 4.2 | Y4: 4.21 | Z4: 4.22 | AA4: 4.23 | AB4: 4.24 | AC4: 4.25 | AD4: 4.26 | AE4: 4.27 | AF4: 4.28 | AG4: 4.29
B5: 1.3 Company ID | E5: Reporting Month | F5: ULW Received | G5: ULW Rejected | H5: ULW Moisture Content | I5: ULW Transport Distance | J5: FS Received | K5: FS Rejected | L5: FS Moisture Content | M5: FS Transport Distance | N5: RO Received | O5: RO Rejected | P5: RO Moisture Content | Q5: RO Transport Distance | R5: OOW Received | S5: OOW Rejected | T5: OOW Moisture Content | U5: OOW Transport Distance | V5: Biogas Collected | W5: Methane Content | X5: Biogas Combusted Onsite | Y5: North American Natural Gas | Z5: Grid Electricity | AA5: Low-CI Electricity | AB5: LPG or Propane | AC5: Diesel | AD5: Flared Gas | AE5: Natural Gas Blended | AF5: LPG or Propane Blended | AG5: Total Gas Injected
B6: 1.4 Fuel Production Facility ID | E6: MM/YYYY | F6: wet short tons | G6: wet short tons | H6: % | I6: weighted av. miles | J6: =F6 -> wet short tons | K6: =G6 -> wet short tons | L6: =H6 -> % | M6: weighted av. miles | N6: =J6 -> wet short tons | O6: =K6 -> wet short tons | P6: =L6 -> % | Q6: =M6 -> weighted av. miles | R6: =J6 -> wet short tons | S6: =O6 -> wet short tons | T6: =H6 -> % | U6: =M6 -> weighted av. miles | V6: ft3 @ 60oF, 1 atm | W6: %v/v (CH4/biogas) | X6: ft3 @ 60oF, 1 atm | Y6: MMBtu, HHV | Z6: kWh | AA6: kWh | AB6: gallons | AC6: gallons | AD6: MMBtu, HHV | AE6: MMBtu, HHV | AF6: gallons | AG6: MMBtu, HHV
B8: Section 2: Pathway Inputs
B9: 2.1 Organic Waste Feedstocks
B11: 2.2 Process Energy
B14: 2.3 Blended Fossil Fuels
B15: 2.4 Finished Fuels
B18: Section 3: Static Operational Data
B19: 3.1 Electricity Grid Region
B20: 3.2 Grid Electricity EF (gCO2e/kWh)
B21: 3.3 Low-CI Electricity EF (gCO2e/kWh)
B22: 3.4 Distance to CNG Station (miles)
B23: 3.5 LNG Facility ID
B24: 3.6 Distance to LNG Facility (miles)
B25: 3.7 Liquefaction EF (gCO2e/gallon)
B26: 3.8 Bio-LNG Trucking Distance (miles)
B27: 3.9 Bio-LNG Truck Type
B28: 3.10 OOW - % Diverted from Landfill
B29: 3.11 OOW - % Diverted from Composting
B30: 3.12 OOW - TDOC (% dry basis)
B31: 3.13 OOW - DANF (%)
B32: 3.14 OOW - Decay Rate (k)

Sheet Pathway Summary
C2: Tier 1 Organic Waste Biomethane Pathway Summary
C4: FOR APPLICANT ONLY - CONTAINS CONFIDENTIAL BUSINESS INFORMATION - DO NOT DISTRIBUTE
B7: Applicant Information | E7: Biomethane Quantities | I7: Loss Factors
B8: Application # | C8: ='Site-Specific Inputs'!C3 -> 0 | F8: MT CH4 | G8: MJ, LHV | I8: Bio-CNG | J8: Bio-LNG / Bio L-CNG
B9: Company Name and ID | C9: =CONCATENATE('Site-Specific Inputs'!C4," ",'Site-Specific Inputs'!C5) ->  | E9: At Digester Outlet | F9: =G9/'CA-GREET4.0'!E4*'CA-GREET4.0'!E5*'CA-GREET4.0'!I14 -> 0 | G9: =SUMPRODUCT('Site-Specific Inputs'!V7:V30,'Site-Specific Inputs'!W7:W30)*'CA-GREET4.0'!E4 -> 0 | I9: =IFERROR(F10/(F10-D44*'CA-GREET4.0'!I14),) -> 0 | J9: =IFERROR(F10/(F10-SUM(D45:D46)*'CA-GREET4.0'!I14),) -> 0
B10: Fuel Production Facility ID | C10: ='Site-Specific Inputs'!C6 -> 0 | E10: Pipeline Injected | F10: =G10/'CA-GREET4.0'!E4*'CA-GREET4.0'!E5*'CA-GREET4.0'!I14 -> 0 | G10: =(SUM('Site-Specific Inputs'!AG7:AG30)*'CA-GREET4.0'!E6-SUM('Site-Specific Inputs'!AE7:AE30)*'CA-GREET4.0'!E7)*'CA-GREET4.0'!M6-SUM('Site-Specific Inputs'!AF7:AF30)*'CA-GREET4.0'!E9 -> 0
B11: Operational Data Period | C11: =IF('Site-Specific Inputs'!E7=0,"",CONCATENATE(TEXT(MIN('Site-Specific Inputs'!E7:E30),"mm/yyyy")," — ",TEXT(MAX('Site-Specific Inputs'!E7:E30),"mm/yyyy"))) -> 
B13: Avoided Emissions
B14: Feedstock Category | C14: Feedstock Input to Digester | D14: Generation Potential in Landfill | E14: Avoided Methane Fugitives | F14: Avoided N2O Fugitives | G14: Avoided Flaring
C15: dry short tons | D15: MT CH4 | E15: MT CH4 | F15: MT N2O | G15: MMBtu, LHV
B16: Urban Landscaping Waste (ULW) | C16: =SUMPRODUCT('Site-Specific Inputs'!F7:F30-'Site-Specific Inputs'!G7:G30,1-'Site-Specific Inputs'!H7:H30) -> 0 | D16: =C16*'Avoided Emissions'!G131 -> 0 | E16: =IFERROR((AVERAGE('Avoided Emissions'!I131,'Avoided Emissions'!K131)*C16*'Avoided Emissions'!H19+SUM('Site-Specific Inputs'!F7:F30-'Site-Specific Inputs'!G7:G30)*'CA-GREET4.0'!M13*'Avoided Emissions'!F19*'CA-GREET4.0'!I14*'Avoided Emissions'!I19),) -> 0 | F16: =IFERROR(SUM('Site-Specific Inputs'!F7:F30-'Site-Specific Inputs'!G7:G30)*'CA-GREET4.0'!M13*'Avoided Emissions'!F20*'CA-GREET4.0'!I14*'Avoided Emissions'!I19,) -> 0 | G16: =C16*('Avoided Emissions'!G131-AVERAGE('Avoided Emissions'!I131,'Avoided Emissions'!K131))*'CA-GREET4.0'!K12/'CA-GREET4.0'!E5*'CA-GREET4.0'!E4*'CA-GREET4.0'!J10 -> 0
B17: Food Scraps (FS) | C17: =SUMPRODUCT('Site-Specific Inputs'!J7:J30-'Site-Specific Inputs'!K7:K30,1-'Site-Specific Inputs'!L7:L30) -> 0 | D17: =C17*'Avoided Emissions'!G238 -> 0 | E17: =IFERROR((AVERAGE('Avoided Emissions'!I238,'Avoided Emissions'!K238)*C17*'Avoided Emissions'!H20+SUM('Site-Specific Inputs'!J7:J30-'Site-Specific Inputs'!K7:K30)*'CA-GREET4.0'!M13*'Avoided Emissions'!F19*'CA-GREET4.0'!I14*'Avoided Emissions'!I20),) -> 0 | F17: =IFERROR(SUM('Site-Specific Inputs'!J7:J30-'Site-Specific Inputs'!K7:K30)*'CA-GREET4.0'!M13*'Avoided Emissions'!F20*'CA-GREET4.0'!I14*'Avoided Emissions'!I20,) -> 0 | G17: =C17*('Avoided Emissions'!G238-AVERAGE('Avoided Emissions'!I238,'Avoided Emissions'!K238))*'CA-GREET4.0'!K12/'CA-GREET4.0'!E5*'CA-GREET4.0'!E4*'CA-GREET4.0'!J10 -> 0
B18: Recovered Organics (RO) | C18: =SUMPRODUCT('Site-Specific Inputs'!N7:N30-'Site-Specific Inputs'!O7:O30,1-'Site-Specific Inputs'!P7:P30) -> 0 | D18: =C18*'Avoided Emissions'!G345 -> 0 | E18: =IFERROR(C18*AVERAGE('Avoided Emissions'!I345,'Avoided Emissions'!K345),) -> 0 | G18: =C18*('Avoided Emissions'!G345-AVERAGE('Avoided Emissions'!I345,'Avoided Emissions'!K345))*'CA-GREET4.0'!K12/'CA-GREET4.0'!E5*'CA-GREET4.0'!E4*'CA-GREET4.0'!J10 -> 0
B19: Other Organic Waste (OOW) | C19: =SUMPRODUCT('Site-Specific Inputs'!R7:R30-'Site-Specific Inputs'!S7:S30,1-'Site-Specific Inputs'!T7:T30) -> 0 | D19: =IFERROR(C19*'Avoided Emissions'!G452,) -> 0 | E19: =IFERROR((AVERAGE('Avoided Emissions'!I452,'Avoided Emissions'!K452)*C19*'Site-Specific Inputs'!C28+SUM('Site-Specific Inputs'!R7:R30-'Site-Specific Inputs'!S7:S30)*'CA-GREET4.0'!M13*'Avoided Emissions'!F19*'CA-GREET4.0'!I14*'Site-Specific Inputs'!C29),) -> 0 | F19: =IFERROR(SUM('Site-Specific Inputs'!R7:R30-'Site-Specific Inputs'!S7:S30)*'CA-GREET4.0'!M13*'Avoided Emissions'!F20*'CA-GREET4.0'!I14*'Site-Specific Inputs'!C29,) -> 0 | G19: =IFERROR(C19*('Avoided Emissions'!G452-AVERAGE('Avoided Emissions'!I452,'Avoided Emissions'!K452))*'CA-GREET4.0'!K12/'CA-GREET4.0'!E5*'CA-GREET4.0'!E4*'CA-GREET4.0'!J10,) -> 0
B20: Adjusted Total | C20: =SUM(C16:C19) -> 0 | D20: =SUM(D16:D19) -> 0 | E20: =IFERROR(SUM(E16:E19)*MIN('Pathway Summary'!F9/SUM(D16:D19),1),) -> 0 | F20: =IFERROR(SUM(F16:F19)*MIN('Pathway Summary'!F9/SUM(D16:D19),1),) -> 0 | G20: =IFERROR(SUM(G16:G19)*MIN('Pathway Summary'!F9/SUM(D16:D19),1),) -> 0
B22: Carbon Intensity Calculations
B23: Fuel Pathway Inputs | F23: Emission Factors | H23: Emissions | I23: CI (gCO2e/MJ)
B24: Category | C24: Name | D24: Value | E24: Unit | F24: Value | G24: Unit | H24: gCO2e | I24: Bio-CNG | J24: Bio-LNG | K24: Bio-L-CNG
B25: Avoided Emissions | C25: Methane | D25: =-E20*'CA-GREET4.0'!K12 -> 0 | E25: g CH4 | F25: ='CA-GREET4.0'!E13 -> 25 | G25: gCO2e/gCH4 | H25: =D25*F25 -> 0 | I25: =IFERROR(H25/G10/I9,) -> 0 | J25: =IFERROR(H25/G10/J9,) -> 0 | K25: =IFERROR(H25/G10/J9,) -> 0
C26: Nitrous Oxide | D26: =-F20*'CA-GREET4.0'!K12 -> 0 | E26: g N2O | F26: ='CA-GREET4.0'!E14 -> 298 | G26: gCO2e/gN2O | H26: =D26*F26 -> 0 | I26: =IFERROR(H26/G10/I9,) -> 0 | J26: =IFERROR(H26/G10/J9,) -> 0 | K26: =IFERROR(H26/G10/J9,) -> 0
C27: Landfill Gas Flaring | D27: =-G20 -> 0 | E27: MMBtu, LHV | F27: ='CA-GREET4.0'!E20 -> 1117.475 | G27: gCO2e/MMBtu, LHV | H27: =D27*F27 -> 0 | I27: =IFERROR(H27/G10/I9,) -> 0 | J27: =IFERROR(H27/G10/J9,) -> 0 | K27: =IFERROR(H27/G10/J9,) -> 0
C28: CO2 Balance | D28: =-(D25+D27*'CA-GREET4.0'!E21)*'CA-GREET4.0'!E12/'CA-GREET4.0'!E11 -> 0 | E28: g CO2 | F28: 1 | G28: gCO2e/g CO2 | H28: =D28*F28 -> 0 | I28: =IFERROR(H28/G10/I9,) -> 0 | J28: =IFERROR(H28/G10/J9,) -> 0 | K28: =IFERROR(H28/G10/J9,) -> 0
B29: Feedstock Transport | C29: Truck | D29: =SUMPRODUCT('Site-Specific Inputs'!F7:F30,'Site-Specific Inputs'!I7:I30)+SUMPRODUCT('Site-Specific Inputs'!J7:J30,'Site-Specific Inputs'!M7:M30)+SUMPRODUCT('Site-Specific Inputs'!N7:N30,'Site-Specific Inputs'!Q7:Q30)+SUMPRODUCT('Site-Specific Inputs'!R7:R30,'Site-Specific Inputs'!U7:U30) -> 0 | E29: short ton-miles | F29: ='CA-GREET4.0'!E15 -> 218 | G29: gCO2e/short ton-mile | H29: =D29*F29 -> 0 | I29: =IFERROR(H29/G10/I9,) -> 0 | J29: =IFERROR(H29/G10/J9,) -> 0 | K29: =IFERROR(H29/G10/J9,) -> 0
B30: Process Energy | C30: ='Site-Specific Inputs'!X5 -> Biogas Combusted Onsite | D30: =SUMPRODUCT('Site-Specific Inputs'!W7:W30,'Site-Specific Inputs'!X7:X30)*'CA-GREET4.0'!E4*'CA-GREET4.0'!J10 -> 0 | E30: MMBtu, LHV | F30: ='CA-GREET4.0'!E16 -> 1117.475 | G30: gCO2e/MMBtu, LHV | H30: 0 | I30: =IFERROR(H30/G10/I9,) -> 0 | J30: =IFERROR(H30/G10/J9,) -> 0 | K30: =IFERROR(H30/G10/J9,) -> 0
C31: ='Site-Specific Inputs'!Y5 -> North American Natural Gas | D31: =SUM('Site-Specific Inputs'!Y7:Y30)*'CA-GREET4.0'!E7 -> 0 | E31: MMBtu, LHV | F31: ='CA-GREET4.0'!E17 -> 75496 | G31: gCO2e/MMBtu, LHV | H31: 0 | I31: =IFERROR(H31/G10/I9,) -> 0 | J31: =IFERROR(H31/G10/J9,) -> 0 | K31: =IFERROR(H31/G10/J9,) -> 0
C32: ='Site-Specific Inputs'!Z5 -> Grid Electricity | D32: =SUM('Site-Specific Inputs'!Z7:Z30) -> 0 | E32: ='Site-Specific Inputs'!Z6 -> kWh | F32: ='Site-Specific Inputs'!C20 -> 0 | G32: gCO2e/kWh | H32: 0 | I32: =IFERROR(H32/G10/I9,) -> 0 | J32: =IFERROR(H32/G10/J9,) -> 0 | K32: =IFERROR(H32/G10/J9,) -> 0
C33: ='Site-Specific Inputs'!AA5 -> Low-CI Electricity | D33: =SUM('Site-Specific Inputs'!AA7:AA30) -> 0 | E33: kWh | F33: ='Site-Specific Inputs'!C21 -> 0 | G33: gCO2e/kWh | H33: 0 | I33: =IFERROR(H33/G10/I9,) -> 0 | J33: =IFERROR(H33/G10/J9,) -> 0 | K33: =IFERROR(H33/G10/J9,) -> 0
C34: ='Site-Specific Inputs'!AB5 -> LPG or Propane | D34: =SUM('Site-Specific Inputs'!AB7:AB30) -> 0 | E34: gallons | F34: ='CA-GREET4.0'!E18 -> 7345.277403 | G34: gCO2e/gallon | H34: 0 | I34: =IFERROR(H34/G10/I9,) -> 0 | J34: =IFERROR(H34/G10/J9,) -> 0 | K34: =IFERROR(H34/G10/J9,) -> 0
C35: ='Site-Specific Inputs'!AC5 -> Diesel | D35: =SUM('Site-Specific Inputs'!AC7:AC30) -> 0 | E35: gallons | F35: ='CA-GREET4.0'!E19 -> 12308 | G35: gCO2e/gallon | H35: 0 | I35: =IFERROR(H35/G10/I9,) -> 0 | J35: =IFERROR(H35/G10/J9,) -> 0 | K35: =IFERROR(H35/G10/J9,) -> 0
B36: Tail Gas Destruction | C36: ='Site-Specific Inputs'!AD5 -> Flared Gas | D36: =SUM('Site-Specific Inputs'!AD7:AD30)*'CA-GREET4.0'!E6 -> 0 | E36: MMBtu, LHV | F36: ='CA-GREET4.0'!E20 -> 1117.475 | G36: gCO2e/MMBtu, LHV | H36: 0 | I36: =IFERROR(H36/G10/I9,) -> 0 | J36: =IFERROR(H36/G10/J9,) -> 0 | K36: =IFERROR(H36/G10/J9,) -> 0
B37: Pipeline Transport Energy | C37: To Bio-CNG Station | D37: =G10*'Site-Specific Inputs'!C22 -> 0 | E37: MJ-miles, LHV | F37: ='CA-GREET4.0'!E24 -> 0.00389 | G37: gCO2e/MJ-Mile, LHV | H37: 0 | I37: =IFERROR(H37/G10/I9,) -> 0
C38: To Liquefaction Facility | D38: =G10*'Site-Specific Inputs'!C24 -> 0 | E38: MJ-miles, LHV | F38: ='CA-GREET4.0'!E24 -> 0.00389 | G38: gCO2e/MJ-Mile, LHV | H38: 0 | J38: =IFERROR(H38/G10/J9,) -> 0 | K38: =IFERROR(H38/G10/J9,) -> 0
B39: LNG / L-CNG Production and Transport | C39: Liquefaction Process | D39: =IF('Site-Specific Inputs'!C25="",,'Pathway Summary'!G10) -> 0 | E39: MJ LNG | F39: ='Site-Specific Inputs'!C25/'CA-GREET4.0'!E8 -> 0 | G39: gCO2e/MJ LNG | H39: 0 | J39: =IFERROR(H39/G10/J9,) -> 0 | K39: =IFERROR(H39/G10/J9,) -> 0
C40: Truck Transport | D40: =IF('Site-Specific Inputs'!C25="",,'Pathway Summary'!G10) -> 0 | E40: MJ LNG | F40: ='Site-Specific Inputs'!C26*'CA-GREET4.0'!E25 -> 0 | G40: gCO2e/MJ LNG | H40: 0 | J40: =IFERROR(H40/G10/J9,) -> 0 | K40: =IFERROR(H40/G10/J9,) -> 0
B41: CNG Station | C41: Compression at Fueling Station | D41: =IFERROR(G10/I9,) -> 0 | E41: MJ | F41: ='CA-GREET4.0'!E28 -> 2.96363944 | G41: gCO2e/MJ, LHV | H41: 0 | I41: =IFERROR(H41/G10/I9,) -> 0 | K41: =IFERROR(H41/G10/J9,) -> 0
B42: Fugitive Methane | C42: Anaerobic Digestion | D42: =F9*'CA-GREET4.0'!E22*'CA-GREET4.0'!K12 -> 0 | E42: g CH4 | F42: ='CA-GREET4.0'!E13 -> 25 | G42: gCO2e/g CH4 | H42: 0 | I42: =IFERROR(H42/G10/I9,) -> 0 | J42: =IFERROR(H42/G10/J9,) -> 0 | K42: =IFERROR(H42/G10/J9,) -> 0
C43: Biogas Upgrading | D43: =MAX(F9*'CA-GREET4.0'!K12-(D30+D36)*'CA-GREET4.0'!M6/'CA-GREET4.0'!E4*'CA-GREET4.0'!E5-F10*'CA-GREET4.0'!K12,F9*'CA-GREET4.0'!K12*'CA-GREET4.0'!E22) -> 0 | E43: g CH4 | F43: ='CA-GREET4.0'!E13 -> 25 | G43: gCO2e/g CH4 | H43: 0 | I43: =IFERROR(H43/G10/I9,) -> 0 | J43: =IFERROR(H43/G10/J9,) -> 0 | K43: =IFERROR(H43/G10/J9,) -> 0
C44: Pipeline to CNG Station | D44: =F10*'CA-GREET4.0'!K12*'CA-GREET4.0'!E23*'Site-Specific Inputs'!C22 -> 0 | E44: g CH4 | F44: ='CA-GREET4.0'!E13 -> 25 | G44: gCO2e/g CH4 | H44: 0 | I44: =IFERROR(H44/G10/I9,) -> 0
C45: Pipeline to LNG or L-CNG Station | D45: =F10*'CA-GREET4.0'!K12*'CA-GREET4.0'!E23*'Site-Specific Inputs'!C24 -> 0 | E45: g CH4 | F45: ='CA-GREET4.0'!E13 -> 25 | G45: gCO2e/g CH4 | H45: 0 | J45: =IFERROR(H45/G10/J9,) -> 0 | K45: =IFERROR(H45/G10/J9,) -> 0
C46: LNG Trucking | D46: =F10*'CA-GREET4.0'!K12*IF('Site-Specific Inputs'!C27="Boil-Off Recovery Equipped",'CA-GREET4.0'!E26,'CA-GREET4.0'!E27) -> 0 | E46: g CH4 | F46: ='CA-GREET4.0'!E13 -> 25 | G46: gCO2e/g CH4 | H46: 0 | J46: =IFERROR(H46/G10/J9,) -> 0 | K46: =IFERROR(H46/G10/J9,) -> 0
B47: Vehicle Tailpipe | C47: Non-CO2 Emissions | D47: =G10 -> 0 | E47: MJ RNG, LHV | F47: ='CA-GREET4.0'!E29 -> 5.51 | G47: gCO2e/MJ RNG, LHV | H47: 0 | I47: =IFERROR(H47/G10/I9,) -> 0 | J47: =IFERROR(H47/G10/J9,) -> 0 | K47: =IFERROR(H47/G10/J9,) -> 0
B48: Calculated Fuel Pathway Carbon Intensity (gCO2e/MJ RNG, LHV) | I48: =SUM(I25:I47) -> 0 | J48: =SUM(J25:J47) -> 0 | K48: =SUM(K25:K47) -> 0
B49: Margin of Safety (entered by applicant)
B50: Fuel Pathway Carbon Intensity for Certification (gCO2e/MJ RNG, LHV) | I50: =SUM(I48:I49) -> 0 | J50: =SUM(J48:J49) -> 0 | K50: =SUM(K48:K49) -> 0
B52: Operating Conditions
C63: `

Sheet Avoided Emissions
B2: Section 7. References
C3: CalRecycle (2022). 2021 Disposal Facility-based Characterization of Solid Waste in California | E3: U.S. EPA (2020). Documentation for Greenhouse Gas Emission and Energy Factors Used in the Waste Reduction Model (WARM). Management Practices Chapters
B4: Feedstock | C4: short wet ton | D4: % of organic MSW in CA disposed waste stream (%m/m, dry basis) | E4: Total Degradable Organic Carbon (TDOC, dry w/w) (Exhibit 6-4) | F4: Anaerobically Degradable Fraction (Exhibit 6-6) | G4: Decay Rate, National Average (Exhibit 6-8) | H4: Ratio of Dry Weight to Wet Weight (Exhibit 6-13) | I4: ANDOC (MT/short ton dry waste)
B5: Newspaper | C5: 295433.7786 | D5: =C5*H5/SUMPRODUCT(C5:C15,H5:H15) -> 0.022856224 | E5: 0.49 | F5: 0.16 | G5: 0.04 | H5: 0.87 | I5: =E5*'CA-GREET4.0'!M14*F5 -> 0.07112328362
B6: Office Paper | C6: 1637360.414 | D6: =C6*H6/SUMPRODUCT(C5:C15,H5:H15) -> 0.1324984387 | E6: 0.32 | F6: 0.88 | G6: 0.04 | H6: 0.91 | I6: =E6*'CA-GREET4.0'!M14*F6 -> 0.2554632228
B7: Corrugated Boxes | C7: 1643490.074 | D7: =C7*H7/SUMPRODUCT(C5:C15,H5:H15) -> 0.1213026419 | E7: 0.47 | F7: 0.45 | G7: 0.03 | H7: 0.83 | I7: =E7*'CA-GREET4.0'!M14*F7 -> 0.1918695725
B8: Coated Paper | C8: 2617540.859 | D8: =C8*H8/SUMPRODUCT(C5:C15,H5:H15) -> 0.2141442309 | E8: 0.34 | F8: 0.26 | G8: 0.16 | H8: 0.92 | I8: =E8*'CA-GREET4.0'!M14*F8 -> 0.08019513102
B9: Food | C9: 4362949.512 | D9: =C9*H9/SUMPRODUCT(C5:C15,H5:H15) -> 0.1047536184 | E9: 0.5 | F9: 0.84 | G9: 0.19 | H9: 0.27 | I9: =E9*'CA-GREET4.0'!M14*F9 -> 0.3810175908
B10: Grass | C10: 441945.7755 | D10: =C10*H10/SUMPRODUCT(C5:C15,H5:H15) -> 0.007074024732 | E10: 0.45 | F10: 0.47 | G10: 0.39 | H10: 0.18 | I10: =E10*'CA-GREET4.0'!M14*F10 -> 0.1918695725
B11: Leaves | C11: 441945.7755 | D11: =C11*H11/SUMPRODUCT(C5:C15,H5:H15) -> 0.02436608519 | E11: 0.46 | F11: 0.15 | G11: 0.22 | H11: 0.62 | I11: =E11*'CA-GREET4.0'!M14*F11 -> 0.06259574706
B12: Branches | C12: 1527296.797 | D12: =C12*H12/SUMPRODUCT(C5:C15,H5:H15) -> 0.1140848062 | E12: 0.49 | F12: 0.23 | G12: 0.02 | H12: 0.84 | I12: =E12*'CA-GREET4.0'!M14*F12 -> 0.1022397202
B13: Dimensional Lumber | C13: 1768515 | D13: =C13*H13/SUMPRODUCT(C5:C15,H5:H15) -> 0.1179492254 | E13: 0.49 | F13: 0.12 | G13: 0.11 | H13: 0.75 | I13: =E13*'CA-GREET4.0'!M14*F13 -> 0.05334246271
B14: Medium Density Fiberboard | C14: 751487 | D14: =C14*H14/SUMPRODUCT(C5:C15,H5:H15) -> 0.05011962551 | E14: 0.44 | F14: 0.16 | G14: 0.08 | H14: 0.75 | I14: =E14*'CA-GREET4.0'!M14*F14 -> 0.0638658057
B15: Wood Flooring | C15: 1362209 | D15: =C15*H15/SUMPRODUCT(C5:C15,H5:H15) -> 0.09085107919 | E15: 0.46 | F15: 0.01 | G15: =AVERAGE(G13:G14) -> 0.095 | H15: 0.75 | I15: =E15*'CA-GREET4.0'!M14*F15 -> 0.004173049804
B17: Method for Estimating Greenhouse Gas Emission Reductions from Diversion of Organic Waste from Landfills to Compost Facilities. CARB. 2017 | G17: tier1-ow-calculator-corrected (CA-GREET3.0)
B18: Year | C18: Gas Collection Scenario 1: Typical Phased | D18: Gas Collection Scenario 2: Phased with Shutdown | E18: Avoided Composting Emissions (g/wet kg feedstock) | G18: Feedstock | H18: Diverted from Landfill | I18: Diverted from Composting
B19: 1-2 | C19: 0 | D19: 0 | E19: CH4 | F19: 1.96 | G19: Urban Landscaping Waste (ULW) | H19: 0.359 | I19: =1-H19 -> 0.641
B20: 3 | C20: 0.5 | D20: 0.5 | E20: N2O | F20: 0.075 | G20: Food Scraps (FS) | H20: 0.975 | I20: =1-H20 -> 0.025
B21: 4-5 | C21: 0.75 | D21: 0.7
B22: 6-10 | C22: 0.75 | D22: 0.8
B23: 11-60 | C23: 0.95 | D23: 0.8
B24: 61-100 | C24: 0.95 | D24: 0
B26: Section 7.1 IPCC First Order Decay Model for Urban Landscaping Waste
C27: ANDOC (MT C/dry short ton waste) | D27: Decay Rate (k) | E27: Oxidation Factor | F27: FCH4 | G27: Mass CH4:C | H27: M (months) | I27: ANDOCys | J27: ANDOCdly | K27: ANDOCdsy
C28: =SUMPRODUCT('Avoided Emissions'!I10:I12,'Avoided Emissions'!D10:D12)/SUM('Avoided Emissions'!D10:D12) -> 0.09995884182 | D28: =SUMPRODUCT('Avoided Emissions'!G10:G12,'Avoided Emissions'!D10:D12)/SUM('Avoided Emissions'!D10:D12) -> 0.071473015 | E28: 0.1 | F28: 0.5 | G28: ='CA-GREET4.0'!E11/'CA-GREET4.0'!E10 -> 1.333333333 | H28: 6 | I28: =EXP(-D28) -> 0.9310214009 | J28: =((1/D28)*(EXP(-(D28*(1-H28/12)))-EXP(-D28))-((H28/12)*EXP(-D28))) -> 0.008417838705 | K28: =((1/D28)*(1-EXP(-(D28*(1-H28/12))))+(H28/12)) -> 0.9911713539
B29: Methane Generation | H29: Gas Collection Scenario 1: Typical Phased | J29: Gas Collection Scenario 2: Phased with Shutdown
B30: Year | C30: ANDOC ys | D30: ANDOC dly | E30: ANDOC dsy | F30: ANDOC ye | G30: MT CH4 Gen/dry short ton | H30: Gas Collection Efficiency (%) | I30: MT CH4 Emitted/dry short ton | J30: Gas Collection Efficiency (%) | K30: MT CH4 Emitted/dry short ton
B31: 1 | C31: 0 | D31: 0 | E31: =C28 -> 0.09995884182 | F31: =C31*I28+D31*J28+E31*K28 -> 0.09907634058 | G31: =((C31*(1-I28))-(D31*J28)+(E31*(1-K28)))*F28*G28 -> 0.0005883341594 | H31: 0 | I31: =G31*(1-H31)*(1-E28) -> 0.0005295007435 | J31: 0 | K31: =G31*(1-J31)*(1-E28) -> 0.0005295007435
B32: 2 | C32: =F31 -> 0.09907634058 | D32: =E31 -> 0.09995884182 | E32: =0 -> 0 | F32: =C32*I28+D32*J28+E32*K28 -> 0.09308363081 | G32: =((C32*(1-I28))-(D32*J28)+(E32*(1-K28)))*F28*G28 -> 0.003995139848 | H32: 0 | I32: =G32*(1-H32)*(1-E28) -> 0.003595625863 | J32: 0 | K32: =G32*(1-J32)*(1-E28) -> 0.003595625863
B33: 3 | C33: 0.09308363081 | D33: 0 | E33: =0 -> 0 | F33: =C33*I28+D33*J28+E33*K28 -> 0.08666285235 | G33: =((C33*(1-I28))-(D33*J28)+(E33*(1-K28)))*F28*G28 -> 0.00428051897 | H33: =0.5*0.9977 -> 0.49885 | I33: =G33*(1-H33)*(1-E28) -> 0.001930663874 | J33: =0.5*0.9977 -> 0.49885 | K33: =G33*(1-J33)*(1-E28) -> 0.001930663874
B34: 4 | C34: 0.08666285235 | D34: 0 | E34: =0 -> 0 | F34: =C34*I28+D34*J28+E34*K28 -> 0.0806849702 | G34: =((C34*(1-I28))-(D34*J28)+(E34*(1-K28)))*F28*G28 -> 0.003985254768 | H34: =0.75*0.9977 -> 0.748275 | I34: =G34*(1-H34)*(1-E28) -> 0.0009028694308 | J34: =0.7*0.9977 -> 0.69839 | K34: =G34*(1-J34)*(1-E28) -> 0.001081793421
B35: 5 | C35: 0.0806849702 | D35: 0 | E35: =0 -> 0 | F35: =C35*I28+D35*J28+E35*K28 -> 0.07511943399 | G35: =((C35*(1-I28))-(D35*J28)+(E35*(1-K28)))*F28*G28 -> 0.003710357477 | H35: 0.748275 | I35: =G35*(1-H35)*(1-E28) -> 0.0008405907623 | J35: =0.7*0.9977 -> 0.69839 | K35: =G35*(1-J35)*(1-E28) -> 0.001007172827
B36: 6 | C36: 0.07511943399 | D36: 0 | E36: =0 -> 0 | F36: =C36*I28+D36*J28+E36*K28 -> 0.06993780066 | G36: =((C36*(1-I28))-(D36*J28)+(E36*(1-K28)))*F28*G28 -> 0.003454422216 | H36: 0.748275 | I36: =G36*(1-H36)*(1-E28) -> 0.000782607989 | J36: =0.8*0.9977 -> 0.79816 | K36: =G36*(1-J36)*(1-E28) -> 0.000627516522
B37: 7 | C37: 0.06993780066 | D37: 0 | E37: =0 -> 0 | F37: =C37*I28+D37*J28+E37*K28 -> 0.06511358915 | G37: =((C37*(1-I28))-(D37*J28)+(E37*(1-K28)))*F28*G28 -> 0.003216141011 | H37: 0.748275 | I37: =G37*(1-H37)*(1-E28) -> 0.0007286247863 | J37: 0.79816 | K37: =G37*(1-J37)*(1-E28) -> 0.0005842313114
B38: 8 | C38: 0.06511358915 | D38: 0 | E38: =0 -> 0 | F38: =C38*I28+D38*J28+E38*K28 -> 0.06062214498 | G38: =((C38*(1-I28))-(D38*J28)+(E38*(1-K28)))*F28*G28 -> 0.002994296109 | H38: 0.748275 | I38: =G38*(1-H38)*(1-E28) -> 0.0006783652692 | J38: 0.79816 | K38: =G38*(1-J38)*(1-E28) -> 0.000543931854
B39: 9 | C39: 0.06062214498 | D39: 0 | E39: =0 -> 0 | F39: =C39*I28+D39*J28+E39*K28 -> 0.05644051435 | G39: =((C39*(1-I28))-(D39*J28)+(E39*(1-K28)))*F28*G28 -> 0.002787753758 | H39: 0.748275 | I39: =G39*(1-H39)*(1-E28) -> 0.0006315725833 | J39: 0.79816 | K39: =G39*(1-J39)*(1-E28) -> 0.0005064121967
B40: 10 | C40: 0.05644051435 | D40: 0 | E40: =0 -> 0 | F40: =C40*I28+D40*J28+E40*K28 -> 0.05254732673 | G40: =((C40*(1-I28))-(D40*J28)+(E40*(1-K28)))*F28*G28 -> 0.002595458409 | H40: 0.748275 | I40: =G40*(1-H40)*(1-E28) -> 0.0005880075912 | J40: 0.79816 | K40: =G40*(1-J40)*(1-E28) -> 0.0004714805928
B41: 11 | C41: 0.05254732673 | D41: 0 | E41: =0 -> 0 | F41: =C41*I28+D41*J28+E41*K28 -> 0.04892268575 | G41: =((C41*(1-I28))-(D41*J28)+(E41*(1-K28)))*F28*G28 -> 0.002416427324 | H41: =0.95*0.9977 -> 0.947815 | I41: =G41*(1-H41)*(1-E28) -> 0.0001134911339 | J41: 0.79816 | K41: =G41*(1-J41)*(1-E28) -> 0.000438958522
B42: 12 | C42: 0.04892268575 | D42: 0 | E42: =0 -> 0 | F42: =C42*I28+D42*J28+E42*K28 -> 0.04554806742 | G42: =((C42*(1-I28))-(D42*J28)+(E42*(1-K28)))*F28*G28 -> 0.002249745552 | H42: 0.947815 | I42: =G42*(1-H42)*(1-E28) -> 0.0001056626745 | J42: 0.79816 | K42: =G42*(1-J42)*(1-E28) -> 0.000408679778
B43: 13 | C43: 0.04554806742 | D43: 0 | E43: =0 -> 0 | F43: =C43*I28+D43*J28+E43*K28 -> 0.04240622553 | G43: =((C43*(1-I28))-(D43*J28)+(E43*(1-K28)))*F28*G28 -> 0.002094561256 | H43: 0.947815 | I43: =G43*(1-H43)*(1-E28) -> 9.837421121e-05 | J43: 0.79816 | K43: =G43*(1-J43)*(1-E28) -> 0.0003804896195
B44: 14 | C44: 0.04240622553 | D44: 0 | E44: =0 -> 0 | F44: =C44*I28+D44*J28+E44*K28 -> 0.0394811035 | G44: =((C44*(1-I28))-(D44*J28)+(E44*(1-K28)))*F28*G28 -> 0.001950081354 | H44: 0.947815 | I44: =G44*(1-H44)*(1-E28) -> 9.158849593e-05 | J44: 0.79816 | K44: =G44*(1-J44)*(1-E28) -> 0.0003542439785
B45: 15 | C45: 0.0394811035 | D45: 0 | E45: =0 -> 0 | F45: =C45*I28+D45*J28+E45*K28 -> 0.03675775229 | G45: =((C45*(1-I28))-(D45*J28)+(E45*(1-K28)))*F28*G28 -> 0.001815567474 | H45: 0.947815 | I45: =G45*(1-H45)*(1-E28) -> 8.527084979e-05 | J45: 0.79816 | K45: =G45*(1-J45)*(1-E28) -> 0.0003298087251
B46: 16 | C46: 0.03675775229 | D46: 0 | E46: =0 -> 0 | F46: =C46*I28+D46*J28+E46*K28 -> 0.03422225403 | G46: =((C46*(1-I28))-(D46*J28)+(E46*(1-K28)))*F28*G28 -> 0.001690332173 | H46: 0.947815 | I46: =G46*(1-H46)*(1-E28) -> 7.938898602e-05 | J46: 0.79816 | K46: =G46*(1-J46)*(1-E28) -> 0.0003070589813
B47: 17 | C47: 0.03422225403 | D47: 0 | E47: =0 -> 0 | F47: =C47*I28+D47*J28+E47*K28 -> 0.03186165089 | G47: =((C47*(1-I28))-(D47*J28)+(E47*(1-K28)))*F28*G28 -> 0.001573735428 | H47: 0.947815 | I47: =G47*(1-H47)*(1-E28) -> 7.391284498e-05 | J47: 0.79816 | K47: =G47*(1-J47)*(1-E28) -> 0.0002858784829
B48: 18 | C48: 0.03186165089 | D48: 0 | E48: =0 -> 0 | F48: =C48*I28+D48*J28+E48*K28 -> 0.02966387884 | G48: =((C48*(1-I28))-(D48*J28)+(E48*(1-K28)))*F28*G28 -> 0.001465181363 | H48: 0.947815 | I48: =G48*(1-H48)*(1-E28) -> 6.881444048e-05 | J48: 0.79816 | K48: =G48*(1-J48)*(1-E28) -> 0.0002661589856
B49: 19 | C49: 0.02966387884 | D49: =E48 -> 0 | E49: =0 -> 0 | F49: =C49*I28+D49*J28+E49*K28 -> 0.02761770604 | G49: =((C49*(1-I28))-(D49*J28)+(E49*(1-K28)))*F28*G28 -> 0.001364115205 | H49: 0.947815 | I49: =G49*(1-H49)*(1-E28) -> 6.406771677e-05 | J49: 0.79816 | K49: =G49*(1-J49)*(1-E28) -> 0.0002477997117
B50: 20 | C50: 0.02761770604 | D50: 0 | E50: =0 -> 0 | F50: =C50*I28+D50*J28+E50*K28 -> 0.02571267536 | G50: =((C50*(1-I28))-(D50*J28)+(E50*(1-K28)))*F28*G28 -> 0.001270020449 | H50: 0.947815 | I50: =G50*(1-H50)*(1-E28) -> 5.964841542e-05 | J50: 0.79816 | K50: =G50*(1-J50)*(1-E28) -> 0.0002307068347
B51: 21 | C51: 0.02571267536 | D51: 0 | E51: =0 -> 0 | F51: =C51*I28+D51*J28+E51*K28 -> 0.02393905104 | G51: =((C51*(1-I28))-(D51*J28)+(E51*(1-K28)))*F28*G28 -> 0.001182416218 | H51: 0.947815 | I51: =G51*(1-H51)*(1-E28) -> 5.553395128e-05 | J51: 0.79816 | K51: =G51*(1-J51)*(1-E28) -> 0.0002147930004
B52: 22 | C52: 0.02393905104 | D52: 0 | E52: =0 -> 0 | F52: =C52*I28+D52*J28+E52*K28 -> 0.02228776883 | G52: =((C52*(1-I28))-(D52*J28)+(E52*(1-K28)))*F28*G28 -> 0.001100854803 | H52: 0.947815 | I52: =G52*(1-H52)*(1-E28) -> 5.170329712e-05 | J52: 0.79816 | K52: =G52*(1-J52)*(1-E28) -> 0.0001999768802
B53: 23 | C53: 0.02228776883 | D53: 0 | E53: =0 -> 0 | F53: =C53*I28+D53*J28+E53*K28 -> 0.02075038976 | G53: =((C53*(1-I28))-(D53*J28)+(E53*(1-K28)))*F28*G28 -> 0.001024919381 | H53: 0.947815 | I53: =G53*(1-H53)*(1-E28) -> 4.813687611e-05 | J53: 0.79816 | K53: =G53*(1-J53)*(1-E28) -> 0.0001861827551
B54: 24 | C54: 0.02075038976 | D54: 0 | E54: =0 -> 0 | F54: =C54*I28+D54*J28+E54*K28 -> 0.01931905694 | G54: =((C54*(1-I28))-(D54*J28)+(E54*(1-K28)))*F28*G28 -> 0.000954221878 | H54: 0.947815 | I54: =G54*(1-H54)*(1-E28) -> 4.481646183e-05 | J54: 0.79816 | K54: =G54*(1-J54)*(1-E28) -> 0.0001733401295
B55: 25 | C55: 0.01931905694 | D55: 0 | E55: =0 -> 0 | F55: =C55*I28+D55*J28+E55*K28 -> 0.01798645546 | G55: =((C55*(1-I28))-(D55*J28)+(E55*(1-K28)))*F28*G28 -> 0.0008884009896 | H55: 0.947815 | I55: =G55*(1-H55)*(1-E28) -> 4.172508508e-05 | J55: 0.79816 | K55: =G55*(1-J55)*(1-E28) -> 0.0001613833702
B56: 26 | C56: 0.01798645546 | D56: 0 | E56: =0 -> 0 | F56: =C56*I28+D56*J28+E56*K28 -> 0.01674577496 | G56: =((C56*(1-I28))-(D56*J28)+(E56*(1-K28)))*F28*G28 -> 0.0008271203339 | H56: 0.947815 | I56: =G56*(1-H56)*(1-E28) -> 3.884694716e-05 | J56: 0.79816 | K56: =G56*(1-J56)*(1-E28) -> 0.0001502513714
B57: 27 | C57: 0.01674577496 | D57: 0 | E57: =0 -> 0 | F57: =C57*I28+D57*J28+E57*K28 -> 0.01559067486 | G57: =((C57*(1-I28))-(D57*J28)+(E57*(1-K28)))*F28*G28 -> 0.0007700667319 | H57: 0.947815 | I57: =G57*(1-H57)*(1-E28) -> 3.616733917e-05 | J57: 0.79816 | K57: =G57*(1-J57)*(1-E28) -> 0.0001398872423
B58: 28 | C58: 0.01559067486 | D58: 0 | E58: =0 -> 0 | F58: =C58*I28+D58*J28+E58*K28 -> 0.01451525195 | G58: =((C58*(1-I28))-(D58*J28)+(E58*(1-K28)))*F28*G28 -> 0.0007169486075 | H58: 0.947815 | I58: =G58*(1-H58)*(1-E28) -> 3.367256678e-05 | J58: 0.79816 | K58: =G58*(1-J58)*(1-E28) -> 0.0001302380163
B59: 29 | C59: 0.01451525195 | D59: 0 | E59: =0 -> 0 | F59: =C59*I28+D59*J28+E59*K28 -> 0.0135140102 | G59: =((C59*(1-I28))-(D59*J28)+(E59*(1-K28)))*F28*G28 -> 0.0006674944969 | H59: 0.947815 | I59: =G59*(1-H59)*(1-E28) -> 3.134988029e-05 | J59: 0.79816 | K59: =G59*(1-J59)*(1-E28) -> 0.0001212543803
B60: 30 | C60: 0.0135140102 | D60: 0 | E60: =0 -> 0 | F60: =C60*I28+D60*J28+E60*K28 -> 0.01258183271 | G60: =((C60*(1-I28))-(D60*J28)+(E60*(1-K28)))*F28*G28 -> 0.0006214516616 | H60: 0.947815 | I60: =G60*(1-H60)*(1-E28) -> 2.918740947e-05 | J60: 0.79816 | K60: =G60*(1-J60)*(1-E28) -> 0.000112890423
B61: 31 | C61: 0.01258183271 | D61: 0 | E61: =0 -> 0 | F61: =C61*I28+D61*J28+E61*K28 -> 0.01171395552 | G61: =((C61*(1-I28))-(D61*J28)+(E61*(1-K28)))*F28*G28 -> 0.0005785847966 | H61: 0.947815 | I61: =G61*(1-H61)*(1-E28) -> 2.717410285e-05 | J61: 0.79816 | K61: =G61*(1-J61)*(1-E28) -> 0.0001051033998
B62: 32 | C62: 0.01171395552 | D62: 0 | E62: =0 -> 0 | F62: =C62*I28+D62*J28+E62*K28 -> 0.01090594327 | G62: =((C62*(1-I28))-(D62*J28)+(E62*(1-K28)))*F28*G28 -> 0.0005386748278 | H62: 0.947815 | I62: =G62*(1-H62)*(1-E28) -> 2.52996713e-05 | J62: 0.79816 | K62: =G62*(1-J62)*(1-E28) -> 9.785351452e-05
B63: 33 | C63: 0.01090594327 | D63: 0 | E63: =0 -> 0 | F63: =C63*I28+D63*J28+E63*K28 -> 0.01015366658 | G63: =((C63*(1-I28))-(D63*J28)+(E63*(1-K28)))*F28*G28 -> 0.0005015177928 | H63: 0.947815 | I63: =G63*(1-H63)*(1-E28) -> 2.355453542e-05 | J63: 0.79816 | K63: =G63*(1-J63)*(1-E28) -> 9.110371617e-05
B64: 34 | C64: =F63 -> 0.01015366658 | D64: =E63 -> 0 | E64: =0 -> 0 | F64: =C64*I28+D64*J28+E64*K28 -> 0.009453280888 | G64: =((C64*(1-I28))-(D64*J28)+(E64*(1-K28)))*F28*G28 -> 0.000466923798 | H64: 0.947815 | I64: =G64*(1-H64)*(1-E28) -> 2.192977656e-05 | J64: 0.79816 | K64: =G64*(1-J64)*(1-E28) -> 8.481950945e-05
B65: 35 | C65: 0.009453280888 | D65: 0 | E65: =0 -> 0 | F65: =C65*I28+D65*J28+E65*K28 -> 0.008801206815 | G65: =((C65*(1-I28))-(D65*J28)+(E65*(1-K28)))*F28*G28 -> 0.0004347160485 | H65: 0.947815 | I65: =G65*(1-H65)*(1-E28) -> 2.041709129e-05 | J65: 0.79816 | K65: =G65*(1-J65)*(1-E28) -> 7.896877851e-05
B66: 36 | C66: 0.008801206815 | D66: 0 | E66: =0 -> 0 | F66: =C66*I28+D66*J28+E66*K28 -> 0.008194111898 | G66: =((C66*(1-I28))-(D66*J28)+(E66*(1-K28)))*F28*G28 -> 0.0004047299445 | H66: 0.947815 | I66: =G66*(1-H66)*(1-E28) -> 1.900874894e-05 | J66: 0.79816 | K66: =G66*(1-J66)*(1-E28) -> 7.35216228e-05
B67: 37 | C67: 0.008194111898 | D67: 0 | E67: =0 -> 0 | F67: =C67*I28+D67*J28+E67*K28 -> 0.007628893538 | G67: =((C67*(1-I28))-(D67*J28)+(E67*(1-K28)))*F28*G28 -> 0.0003768122399 | H67: 0.947815 | I67: =G67*(1-H67)*(1-E28) -> 1.769755207e-05 | J67: 0.79816 | K67: =G67*(1-J67)*(1-E28) -> 6.845020425e-05
B68: 38 | C68: 0.007628893538 | D68: 0 | E68: =0 -> 0 | F68: =C68*I28+D68*J28+E68*K28 -> 0.007102663149 | G68: =((C68*(1-I28))-(D68*J28)+(E68*(1-K28)))*F28*G28 -> 0.0003508202595 | H68: 0.947815 | I68: =G68*(1-H68)*(1-E28) -> 1.647679972e-05 | J68: =0.8*0.9977 -> 0.79816 | K68: =G68*(1-J68)*(1-E28) -> 6.372860505e-05
B69: 39 | C69: 0.007102663149 | D69: 0 | E69: =0 -> 0 | F69: =C69*I28+D69*J28+E69*K28 -> 0.006612731395 | G69: =((C69*(1-I28))-(D69*J28)+(E69*(1-K28)))*F28*G28 -> 0.0003266211694 | H69: 0.947815 | I69: =G69*(1-H69)*(1-E28) -> 1.534025315e-05 | J69: 0.79816 | K69: =G69*(1-J69)*(1-E28) -> 5.933269515e-05
B70: 40 | C70: 0.006612731395 | D70: 0 | E70: =0 -> 0 | F70: =C70*I28+D70*J28+E70*K28 -> 0.006156594447 | G70: =((C70*(1-I28))-(D70*J28)+(E70*(1-K28)))*F28*G28 -> 0.0003040912987 | H70: 0.947815 | I70: =G70*(1-H70)*(1-E28) -> 1.428210398e-05 | J70: 0.79816 | K70: =G70*(1-J70)*(1-E28) -> 5.524000896e-05
B71: 41 | C71: 0.006156594447 | D71: 0 | E71: =0 -> 0 | F71: =C71*I28+D71*J28+E71*K28 -> 0.005731921187 | G71: =((C71*(1-I28))-(D71*J28)+(E71*(1-K28)))*F28*G28 -> 0.0002831155069 | H71: 0.947815 | I71: =G71*(1-H71)*(1-E28) -> 1.329694446e-05 | J71: 0.79816 | K71: =G71*(1-J71)*(1-E28) -> 5.142963052e-05
B72: 42 | C72: 0.005731921187 | D72: 0 | E72: =0 -> 0 | F72: =C72*I28+D72*J28+E72*K28 -> 0.005336541293 | G72: =((C72*(1-I28))-(D72*J28)+(E72*(1-K28)))*F28*G28 -> 0.0002635865958 | H72: 0.947815 | I72: =G72*(1-H72)*(1-E28) -> 1.237973985e-05 | J72: 0.79816 | K72: =G72*(1-J72)*(1-E28) -> 4.788208666e-05
B73: 43 | C73: 0.005336541293 | D73: 0 | E73: =0 -> 0 | F73: =C73*I28+D73*J28+E73*K28 -> 0.00496843415 | G73: =((C73*(1-I28))-(D73*J28)+(E73*(1-K28)))*F28*G28 -> 0.0002454047617 | H73: =0.95*0.9977 -> 0.947815 | I73: =G73*(1-H73)*(1-E28) -> 1.152580274e-05 | J73: 0.79816 | K73: =G73*(1-J73)*(1-E28) -> 4.457924739e-05
B74: 44 | C74: 0.00496843415 | D74: 0 | E74: =0 -> 0 | F74: =C74*I28+D74*J28+E74*K28 -> 0.004625718523 | G74: =((C74*(1-I28))-(D74*J28)+(E74*(1-K28)))*F28*G28 -> 0.000228477085 | H74: 0.947815 | I74: =G74*(1-H74)*(1-E28) -> 1.073076901e-05 | J74: 0.79816 | K74: =G74*(1-J74)*(1-E28) -> 4.150423336e-05
B75: 45 | C75: 0.004625718523 | D75: 0 | E75: =0 -> 0 | F75: =C75*I28+D75*J28+E75*K28 -> 0.004306642939 | G75: =((C75*(1-I28))-(D75*J28)+(E75*(1-K28)))*F28*G28 -> 0.0002127170558 | H75: 0.947815 | I75: =G75*(1-H75)*(1-E28) -> 9.9905756e-06 | J75: 0.79816 | K75: =G75*(1-J75)*(1-E28) -> 3.864132948e-05
B76: 46 | C76: 0.004306642939 | D76: 0 | E76: =0 -> 0 | F76: =C76*I28+D76*J28+E76*K28 -> 0.004009576742 | G76: =((C76*(1-I28))-(D76*J28)+(E76*(1-K28)))*F28*G28 -> 0.0001980441313 | H76: 0.947815 | I76: =G76*(1-H76)*(1-E28) -> 9.301439691e-06 | J76: 0.79816 | K76: =G76*(1-J76)*(1-E28) -> 3.597590471e-05
B77: 47 | C77: 0.004009576742 | D77: 0 | E77: =0 -> 0 | F77: =C77*I28+D77*J28+E77*K28 -> 0.003733001755 | G77: =((C77*(1-I28))-(D77*J28)+(E77*(1-K28)))*F28*G28 -> 0.0001843833245 | H77: 0.947815 | I77: =G77*(1-H77)*(1-E28) -> 8.659839411e-06 | J77: 0.79816 | K77: =G77*(1-J77)*(1-E28) -> 3.34943372e-05
B78: 48 | C78: 0.003733001755 | D78: 0 | E78: =0 -> 0 | F78: =C78*I28+D78*J28+E78*K28 -> 0.003475504524 | G78: =((C78*(1-I28))-(D78*J28)+(E78*(1-K28)))*F28*G28 -> 0.0001716648211 | H78: 0.947815 | I78: =G78*(1-H78)*(1-E28) -> 8.06249582e-06 | J78: 0.79816 | K78: =G78*(1-J78)*(1-E28) -> 3.118394474e-05
B79: 49 | C79: 0.003475504524 | D79: 0 | E79: =0 -> 0 | F79: =C79*I28+D79*J28+E79*K28 -> 0.00323576909 | G79: =((C79*(1-I28))-(D79*J28)+(E79*(1-K28)))*F28*G28 -> 0.0001598236222 | H79: 0.947815 | I79: =G79*(1-H79)*(1-E28) -> 7.506356153e-06 | J79: 0.79816 | K79: =G79*(1-J79)*(1-E28) -> 2.903291992e-05
B80: 50 | C80: 0.00323576909 | D80: 0 | E80: =0 -> 0 | F80: =C80*I28+D80*J28+E80*K28 -> 0.003012570271 | G80: =((C80*(1-I28))-(D80*J28)+(E80*(1-K28)))*F28*G28 -> 0.0001487992126 | H80: 0.947815 | I80: =G80*(1-H80)*(1-E28) -> 6.988578221e-06 | J80: 0.79816 | K80: =G80*(1-J80)*(1-E28) -> 2.703026977e-05
B81: 51 | C81: 0.003012570271 | D81: 0 | E81: =0 -> 0 | F81: =C81*I28+D81*J28+E81*K28 -> 0.002804767394 | G81: =((C81*(1-I28))-(D81*J28)+(E81*(1-K28)))*F28*G28 -> 0.0001385352514 | H81: 0.947815 | I81: =G81*(1-H81)*(1-E28) -> 6.506515885e-06 | J81: 0.79816 | K81: =G81*(1-J81)*(1-E28) -> 2.516575963e-05
B82: 52 | C82: 0.002804767394 | D82: 0 | E82: =0 -> 0 | F82: =C82*I28+D82*J28+E82*K28 -> 0.002611298469 | G82: =((C82*(1-I28))-(D82*J28)+(E82*(1-K28)))*F28*G28 -> 0.0001289792838 | H82: 0.947815 | I82: =G82*(1-H82)*(1-E28) -> 6.057705534e-06 | J82: 0.79816 | K82: =G82*(1-J82)*(1-E28) -> 2.342986078e-05
B83: 53 | C83: 0.002611298469 | D83: 0 | E83: =0 -> 0 | F83: =C83*I28+D83*J28+E83*K28 -> 0.002431174758 | G83: =((C83*(1-I28))-(D83*J28)+(E83*(1-K28)))*F28*G28 -> 0.0001200824735 | H83: 0.947815 | I83: =G83*(1-H83)*(1-E28) -> 5.639853492e-06 | J83: 0.79816 | K83: =G83*(1-J83)*(1-E28) -> 2.181370181e-05
B84: 54 | C84: 0.002431174758 | D84: 0 | E84: =0 -> 0 | F84: =C84*I28+D84*J28+E84*K28 -> 0.002263475729 | G84: =((C84*(1-I28))-(D84*J28)+(E84*(1-K28)))*F28*G28 -> 0.0001117993527 | H84: 0.947815 | I84: =G84*(1-H84)*(1-E28) -> 5.250824299e-06 | J84: 0.79816 | K84: =G84*(1-J84)*(1-E28) -> 2.030902322e-05
B85: 55 | C85: 0.002263475729 | D85: 0 | E85: =0 -> 0 | F85: =C85*I28+D85*J28+E85*K28 -> 0.002107344344 | G85: =((C85*(1-I28))-(D85*J28)+(E85*(1-K28)))*F28*G28 -> 0.00010408759 | H85: 0.947815 | I85: =G85*(1-H85)*(1-E28) -> 4.888629795e-06 | J85: 0.79816 | K85: =G85*(1-J85)*(1-E28) -> 1.890813525e-05
B86: 56 | C86: 0.002107344344 | D86: 0 | E86: =0 -> 0 | F86: =C86*I28+D86*J28+E86*K28 -> 0.001961982684 | G86: =((C86*(1-I28))-(D86*J28)+(E86*(1-K28)))*F28*G28 -> 9.690777383e-05 | H86: 0.947815 | I86: =G86*(1-H86)*(1-E28) -> 4.55141896e-06 | J86: 0.79816 | K86: =G86*(1-J86)*(1-E28) -> 1.760387856e-05
B87: 57 | C87: 0.001961982684 | D87: 0 | E87: =0 -> 0 | F87: =C87*I28+D87*J28+E87*K28 -> 0.001826647867 | G87: =((C87*(1-I28))-(D87*J28)+(E87*(1-K28)))*F28*G28 -> 9.022321135e-05 | H87: 0.947815 | I87: =G87*(1-H87)*(1-E28) -> 4.237468456e-06 | J87: 0.79816 | K87: =G87*(1-J87)*(1-E28) -> 1.638958768e-05
B88: 58 | C88: 0.001826647867 | D88: 0 | E88: =0 -> 0 | F88: =C88*I28+D88*J28+E88*K28 -> 0.001700648256 | G88: =((C88*(1-I28))-(D88*J28)+(E88*(1-K28)))*F28*G28 -> 8.399974062e-05 | H88: 0.947815 | I88: =G88*(1-H88)*(1-E28) -> 3.945173818e-06 | J88: 0.79816 | K88: =G88*(1-J88)*(1-E28) -> 1.525905688e-05
B89: 59 | C89: 0.001700648256 | D89: 0 | E89: =0 -> 0 | F89: =C89*I28+D89*J28+E89*K28 -> 0.001583339921 | G89: =((C89*(1-I28))-(D89*J28)+(E89*(1-K28)))*F28*G28 -> 7.820555619e-05 | H89: 0.947815 | I89: =G89*(1-H89)*(1-E28) -> 3.673041255e-06 | J89: 0.79816 | K89: =G89*(1-J89)*(1-E28) -> 1.420650851e-05
B90: 60 | C90: 0.001583339921 | D90: 0 | E90: =0 -> 0 | F90: =C90*I28+D90*J28+E90*K28 -> 0.001474123352 | G90: =((C90*(1-I28))-(D90*J28)+(E90*(1-K28)))*F28*G28 -> 7.281104648e-05 | H90: 0.947815 | I90: =G90*(1-H90)*(1-E28) -> 3.419680014e-06 | J90: 0.79816 | K90: =G90*(1-J90)*(1-E28) -> 1.322656346e-05
B91: 61 | C91: 0.001474123352 | D91: 0 | E91: =0 -> 0 | F91: =C91*I28+D91*J28+E91*K28 -> 0.001372440388 | G91: =((C91*(1-I28))-(D91*J28)+(E91*(1-K28)))*F28*G28 -> 6.778864249e-05 | H91: 0.947815 | I91: =G91*(1-H91)*(1-E28) -> 3.183795278e-06 | J91: 0 | K91: =G91*(1-J91)*(1-E28) -> 6.100977824e-05
B92: 62 | C92: 0.001372440388 | D92: 0 | E92: =0 -> 0 | F92: =C92*I28+D92*J28+E92*K28 -> 0.001277771372 | G92: =((C92*(1-I28))-(D92*J28)+(E92*(1-K28)))*F28*G28 -> 6.311267689e-05 | H92: 0.947815 | I92: =G92*(1-H92)*(1-E28) -> 2.964181539e-06 | J92: 0 | K92: =G92*(1-J92)*(1-E28) -> 5.680140921e-05
B93: 63 | C93: 0.001277771372 | D93: 0 | E93: =0 -> 0 | F93: =C93*I28+D93*J28+E93*K28 -> 0.001189632493 | G93: =((C93*(1-I28))-(D93*J28)+(E93*(1-K28)))*F28*G28 -> 5.875925286e-05 | H93: 0.947815 | I93: =G93*(1-H93)*(1-E28) -> 2.759716449e-06 | J93: 0 | K93: =G93*(1-J93)*(1-E28) -> 5.288332757e-05
B94: 64 | C94: 0.001189632493 | D94: 0 | E94: =0 -> 0 | F94: =C94*I28+D94*J28+E94*K28 -> 0.00110757331 | G94: =((C94*(1-I28))-(D94*J28)+(E94*(1-K28)))*F28*G28 -> 5.470612191e-05 | H94: 0.947815 | I94: =G94*(1-H94)*(1-E28) -> 2.569355075e-06 | J94: 0 | K94: =G94*(1-J94)*(1-E28) -> 4.923550972e-05
B95: 65 | C95: 0.00110757331 | D95: 0 | E95: =0 -> 0 | F95: =C95*I28+D95*J28+E95*K28 -> 0.001031174455 | G95: =((C95*(1-I28))-(D95*J28)+(E95*(1-K28)))*F28*G28 -> 5.093257025e-05 | H95: 0.947815 | I95: =G95*(1-H95)*(1-E28) -> 2.392124561e-06 | J95: 0 | K95: =G95*(1-J95)*(1-E28) -> 4.583931323e-05
B96: 66 | C96: =F95 -> 0.001031174455 | D96: =E95 -> 0 | E96: =0 -> 0 | F96: =C96*I28+D96*J28+E96*K28 -> 0.0009600454856 | G96: =((C96*(1-I28))-(D96*J28)+(E96*(1-K28)))*F28*G28 -> 4.741931291e-05 | H96: 0.947815 | I96: =G96*(1-H96)*(1-E28) -> 2.22711916e-06 | J96: 0 | K96: =G96*(1-J96)*(1-E28) -> 4.267738162e-05
B97: 67 | C97: 0.0009600454856 | D97: 0 | E97: =0 -> 0 | F97: =C97*I28+D97*J28+E97*K28 -> 0.0008938228929 | G97: =((C97*(1-I28))-(D97*J28)+(E97*(1-K28)))*F28*G28 -> 4.414839513e-05 | H97: 0.947815 | I97: =G97*(1-H97)*(1-E28) -> 2.0734956e-06 | J97: 0 | K97: =G97*(1-J97)*(1-E28) -> 3.973355562e-05
B98: 68 | C98: 0.0008938228929 | D98: 0 | E98: =0 -> 0 | F98: =C98*I28+D98*J28+E98*K28 -> 0.0008321682419 | G98: =((C98*(1-I28))-(D98*J28)+(E98*(1-K28)))*F28*G28 -> 4.110310068e-05 | H98: 0.947815 | I98: =G98*(1-H98)*(1-E28) -> 1.930468778e-06 | J98: 0 | K98: =G98*(1-J98)*(1-E28) -> 3.699279061e-05
B99: 69 | C99: 0.0008321682419 | D99: 0 | E99: =0 -> 0 | F99: =C99*I28+D99*J28+E99*K28 -> 0.0007747664423 | G99: =((C99*(1-I28))-(D99*J28)+(E99*(1-K28)))*F28*G28 -> 3.826786638e-05 | H99: 0.947815 | I99: =G99*(1-H99)*(1-E28) -> 1.797307746e-06 | J99: 0 | K99: =G99*(1-J99)*(1-E28) -> 3.444107974e-05
B100: 70 | C100: 0.0007747664423 | D100: 0 | E100: =0 -> 0 | F100: =C100*I28+D100*J28+E100*K28 -> 0.0007213241385 | G100: =((C100*(1-I28))-(D100*J28)+(E100*(1-K28)))*F28*G28 -> 3.562820256e-05 | H100: 0.947815 | I100: =G100*(1-H100)*(1-E28) -> 1.673331976e-06 | J100: 0 | K100: =G100*(1-J100)*(1-E28) -> 3.206538231e-05
B101: 71 | C101: 0.0007213241385 | D101: 0 | E101: =0 -> 0 | F101: =C101*I28+D101*J28+E101*K28 -> 0.0006715682099 | G101: =((C101*(1-I28))-(D101*J28)+(E101*(1-K28)))*F28*G28 -> 3.317061906e-05 | H101: 0.947815 | I101: =G101*(1-H101)*(1-E28) -> 1.55790788e-06 | J101: 0 | K101: =G101*(1-J101)*(1-E28) -> 2.985355715e-05
B102: 72 | C102: 0.0006715682099 | D102: 0 | E102: =0 -> 0 | F102: =C102*I28+D102*J28+E102*K28 -> 0.0006252443755 | G102: =((C102*(1-I28))-(D102*J28)+(E102*(1-K28)))*F28*G28 -> 3.088255623e-05 | H102: 0.947815 | I102: =G102*(1-H102)*(1-E28) -> 1.450445577e-06 | J102: 0 | K102: =G102*(1-J102)*(1-E28) -> 2.77943006e-05
B103: 73 | C103: 0.0006252443755 | D103: 0 | E103: =0 -> 0 | F103: =C103*I28+D103*J28+E103*K28 -> 0.0005821158944 | G103: =((C103*(1-I28))-(D103*J28)+(E103*(1-K28)))*F28*G28 -> 2.875232076e-05 | H103: 0.947815 | I103: =G103*(1-H103)*(1-E28) -> 1.350395873e-06 | J103: 0 | K103: =G103*(1-J103)*(1-E28) -> 2.587708868e-05
B104: 74 | C104: 0.0005821158944 | D104: 0 | E104: =0 -> 0 | F104: =C104*I28+D104*J28+E104*K28 -> 0.0005419623555 | G104: =((C104*(1-I28))-(D104*J28)+(E104*(1-K28)))*F28*G28 -> 2.676902595e-05 | H104: 0.947815 | I104: =G104*(1-H104)*(1-E28) -> 1.257247457e-06 | J104: 0 | K104: =G104*(1-J104)*(1-E28) -> 2.409212336e-05
B105: 75 | C105: 0.0005419623555 | D105: 0 | E105: =0 -> 0 | F105: =C105*I28+D105*J28+E105*K28 -> 0.0005045785514 | G105: =((C105*(1-I28))-(D105*J28)+(E105*(1-K28)))*F28*G28 -> 2.492253604e-05 | H105: =0.95*0.9977 -> 0.947815 | I105: =G105*(1-H105)*(1-E28) -> 1.170524289e-06 | J105: 0 | K105: =G105*(1-J105)*(1-E28) -> 2.243028244e-05
B106: 76 | C106: 0.0005045785514 | D106: 0 | E106: =0 -> 0 | F106: =C106*I28+D106*J28+E106*K28 -> 0.0004697734298 | G106: =((C106*(1-I28))-(D106*J28)+(E106*(1-K28)))*F28*G28 -> 2.320341442e-05 | H106: 0.947815 | I106: =G106*(1-H106)*(1-E28) -> 1.089783163e-06 | J106: 0 | K106: =G106*(1-J106)*(1-E28) -> 2.088307298e-05
B107: 77 | C107: 0.0004697734298 | D107: 0 | E107: =0 -> 0 | F107: =C107*I28+D107*J28+E107*K28 -> 0.0004373691167 | G107: =((C107*(1-I28))-(D107*J28)+(E107*(1-K28)))*F28*G28 -> 2.16028754e-05 | H107: 0.947815 | I107: =G107*(1-H107)*(1-E28) -> 1.014611447e-06 | J107: 0 | K107: =G107*(1-J107)*(1-E28) -> 1.944258786e-05
B108: 78 | C108: 0.0004373691167 | D108: 0 | E108: =0 -> 0 | F108: =C108*I28+D108*J28+E108*K28 -> 0.0004072000077 | G108: =((C108*(1-I28))-(D108*J28)+(E108*(1-K28)))*F28*G28 -> 2.011273931e-05 | H108: 0.947815 | I108: =G108*(1-H108)*(1-E28) -> 9.44624971e-07 | J108: 0 | K108: =G108*(1-J108)*(1-E28) -> 1.810146538e-05
B109: 79 | C109: 0.0004072000077 | D109: 0 | E109: =0 -> 0 | F109: =C109*I28+D109*J28+E109*K28 -> 0.0003791119216 | G109: =((C109*(1-I28))-(D109*J28)+(E109*(1-K28)))*F28*G28 -> 1.872539073e-05 | H109: 0.947815 | I109: =G109*(1-H109)*(1-E28) -> 8.794660638e-07 | J109: 0 | K109: =G109*(1-J109)*(1-E28) -> 1.685285166e-05
B110: 80 | C110: 0.0003791119216 | D110: 0 | E110: =0 -> 0 | F110: =C110*I28+D110*J28+E110*K28 -> 0.0003529613124 | G110: =((C110*(1-I28))-(D110*J28)+(E110*(1-K28)))*F28*G28 -> 1.743373951e-05 | H110: 0.947815 | I110: =G110*(1-H110)*(1-E28) -> 8.188017268e-07 | J110: 0 | K110: =G110*(1-J110)*(1-E28) -> 1.569036556e-05
B111: 81 | C111: 0.0003529613124 | D111: 0 | E111: =0 -> 0 | F111: =C111*I28+D111*J28+E111*K28 -> 0.0003286145355 | G111: =((C111*(1-I28))-(D111*J28)+(E111*(1-K28)))*F28*G28 -> 1.623118458e-05 | H111: 0.947815 | I111: =G111*(1-H111)*(1-E28) -> 7.623219307e-07 | J111: 0 | K111: =G111*(1-J111)*(1-E28) -> 1.460806612e-05
B112: 82 | C112: 0.0003286145355 | D112: 0 | E112: =0 -> 0 | F112: =C112*I28+D112*J28+E112*K28 -> 0.0003059471652 | G112: =((C112*(1-I28))-(D112*J28)+(E112*(1-K28)))*F28*G28 -> 1.511158021e-05 | H112: 0.947815 | I112: =G112*(1-H112)*(1-E28) -> 7.097380318e-07 | J112: 0 | K112: =G112*(1-J112)*(1-E28) -> 1.360042219e-05
B113: 83 | C113: 0.0003059471652 | D113: 0 | E113: =0 -> 0 | F113: =C113*I28+D113*J28+E113*K28 -> 0.0002848433583 | G113: =((C113*(1-I28))-(D113*J28)+(E113*(1-K28)))*F28*G28 -> 1.406920457e-05 | H113: 0.947815 | I113: =G113*(1-H113)*(1-E28) -> 6.607812966e-07 | J113: 0 | K113: =G113*(1-J113)*(1-E28) -> 1.266228412e-05
B114: 84 | C114: 0.0002848433583 | D114: 0 | E114: =0 -> 0 | F114: =C114*I28+D114*J28+E114*K28 -> 0.0002651952625 | G114: =((C114*(1-I28))-(D114*J28)+(E114*(1-K28)))*F28*G28 -> 1.309873055e-05 | H114: 0.947815 | I114: =G114*(1-H114)*(1-E28) -> 6.152015285e-07 | J114: 0 | K114: =G114*(1-J114)*(1-E28) -> 1.17888575e-05
B115: 85 | C115: 0.0002651952625 | D115: 0 | E115: =0 -> 0 | F115: =C115*I28+D115*J28+E115*K28 -> 0.0002469024648 | G115: =((C115*(1-I28))-(D115*J28)+(E115*(1-K28)))*F28*G28 -> 1.219519847e-05 | H115: 0.947815 | I115: =G115*(1-H115)*(1-E28) -> 5.727657888e-07 | J115: 0 | K115: =G115*(1-J115)*(1-E28) -> 1.097567862e-05
B116: 86 | C116: 0.0002469024648 | D116: 0 | E116: =0 -> 0 | F116: =C116*I28+D116*J28+E116*K28 -> 0.0002298714786 | G116: =((C116*(1-I28))-(D116*J28)+(E116*(1-K28)))*F28*G28 -> 1.135399076e-05 | H116: 0.947815 | I116: =G116*(1-H116)*(1-E28) -> 5.332572071e-07 | J116: 0 | K116: =G116*(1-J116)*(1-E28) -> 1.021859169e-05
B117: 87 | C117: 0.0002298714786 | D117: 0 | E117: =0 -> 0 | F117: =C117*I28+D117*J28+E117*K28 -> 0.0002140152661 | G117: =((C117*(1-I28))-(D117*J28)+(E117*(1-K28)))*F28*G28 -> 1.057080838e-05 | H117: 0.947815 | I117: =G117*(1-H117)*(1-E28) -> 4.96473872e-07 | J117: 0 | K117: =G117*(1-J117)*(1-E28) -> 9.513727546e-06
B118: 88 | C118: 0.0002140152661 | D118: 0 | E118: =0 -> 0 | F118: =C118*I28+D118*J28+E118*K28 -> 0.0001992527928 | G118: =((C118*(1-I28))-(D118*J28)+(E118*(1-K28)))*F28*G28 -> 9.84164883e-06 | H118: 0.947815 | I118: =G118*(1-H118)*(1-E28) -> 4.622277998e-07 | J118: 0 | K118: =G118*(1-J118)*(1-E28) -> 8.857483947e-06
B119: 89 | C119: 0.0001992527928 | D119: 0 | E119: =0 -> 0 | F119: =C119*I28+D119*J28+E119*K28 -> 0.0001855086143 | G119: =((C119*(1-I28))-(D119*J28)+(E119*(1-K28)))*F28*G28 -> 9.162785681e-06 | H119: 0.947815 | I119: =G119*(1-H119)*(1-E28) -> 4.303439737e-07 | J119: 0 | K119: =G119*(1-J119)*(1-E28) -> 8.246507113e-06
B120: 90 | C120: 0.0001855086143 | D120: 0 | E120: =0 -> 0 | F120: =C120*I28+D120*J28+E120*K28 -> 0.00017271249 | G120: =((C120*(1-I28))-(D120*J28)+(E120*(1-K28)))*F28*G28 -> 8.53074956e-06 | H120: 0.947815 | I120: =G120*(1-H120)*(1-E28) -> 4.006594492e-07 | J120: 0 | K120: =G120*(1-J120)*(1-E28) -> 7.677674604e-06
B121: 91 | C121: 0.00017271249 | D121: 0 | E121: =0 -> 0 | F121: =C121*I28+D121*J28+E121*K28 -> 0.0001607990243 | G121: =((C121*(1-I28))-(D121*J28)+(E121*(1-K28)))*F28*G28 -> 7.942310406e-06 | H121: 0.947815 | I121: =G121*(1-H121)*(1-E28) -> 3.730225217e-07 | J121: 0 | K121: =G121*(1-J121)*(1-E28) -> 7.148079366e-06
B122: 92 | C122: 0.0001607990243 | D122: 0 | E122: =0 -> 0 | F122: =C122*I28+D122*J28+E122*K28 -> 0.0001497073329 | G122: =((C122*(1-I28))-(D122*J28)+(E122*(1-K28)))*F28*G28 -> 7.394460961e-06 | H122: 0.947815 | I122: =G122*(1-H122)*(1-E28) -> 3.472919507e-07 | J122: 0 | K122: =G122*(1-J122)*(1-E28) -> 6.655014865e-06
B123: 93 | C123: 0.0001497073329 | D123: 0 | E123: =0 -> 0 | F123: =C123*I28+D123*J28+E123*K28 -> 0.0001393807308 | G123: =((C123*(1-I28))-(D123*J28)+(E123*(1-K28)))*F28*G28 -> 6.884401402e-06 | H123: 0.947815 | I123: =G123*(1-H123)*(1-E28) -> 3.233362385e-07 | J123: 0 | K123: =G123*(1-J123)*(1-E28) -> 6.195961262e-06
B124: 94 | C124: 0.0001393807308 | D124: 0 | E124: =0 -> 0 | F124: =C124*I28+D124*J28+E124*K28 -> 0.0001297664432 | G124: =((C124*(1-I28))-(D124*J28)+(E124*(1-K28)))*F28*G28 -> 6.409525038e-06 | H124: 0.947815 | I124: =G124*(1-H124)*(1-E28) -> 3.010329577e-07 | J124: 0 | K124: =G124*(1-J124)*(1-E28) -> 5.768572534e-06
B125: 95 | C125: 0.0001297664432 | D125: 0 | E125: =0 -> 0 | F125: =C125*I28+D125*J28+E125*K28 -> 0.0001208153358 | G125: =((C125*(1-I28))-(D125*J28)+(E125*(1-K28)))*F28*G28 -> 5.967404979e-06 | H125: 0.947815 | I125: =G125*(1-H125)*(1-E28) -> 2.80268126e-07 | J125: 0 | K125: =G125*(1-J125)*(1-E28) -> 5.370664482e-06
B126: 96 | C126: 0.0001208153358 | D126: 0 | E126: =0 -> 0 | F126: =C126*I28+D126*J28+E126*K28 -> 0.0001124816632 | G126: =((C126*(1-I28))-(D126*J28)+(E126*(1-K28)))*F28*G28 -> 5.555781744e-06 | H126: 0.947815 | I126: =G126*(1-H126)*(1-E28) -> 2.609356233e-07 | J126: 0 | K126: =G126*(1-J126)*(1-E28) -> 5.000203569e-06
B127: 97 | C127: 0.0001124816632 | D127: 0 | E127: =0 -> 0 | F127: =C127*I28+D127*J28+E127*K28 -> 0.0001047228356 | G127: =((C127*(1-I28))-(D127*J28)+(E127*(1-K28)))*F28*G28 -> 5.172551702e-06 | H127: 0.947815 | I127: =G127*(1-H127)*(1-E28) -> 2.429366495e-07 | J127: 0 | K127: =G127*(1-J127)*(1-E28) -> 4.655296532e-06
B128: 98 | C128: 0.0001047228356 | D128: 0 | E128: =0 -> 0 | F128: =C128*I28+D128*J28+E128*K28 -> 9.749920111e-05 | G128: =((C128*(1-I28))-(D128*J28)+(E128*(1-K28)))*F28*G28 -> 4.815756331e-06 | H128: 0.947815 | I128: =G128*(1-H128)*(1-E28) -> 2.261792197e-07 | J128: 0 | K128: =G128*(1-J128)*(1-E28) -> 4.334180698e-06
B129: 99 | C129: 9.749920111e-05 | D129: 0 | E129: =0 -> 0 | F129: =C129*I28+D129*J28+E129*K28 -> 9.07738428e-05 | G129: =((C129*(1-I28))-(D129*J28)+(E129*(1-K28)))*F28*G28 -> 4.483572206e-06 | H129: 0.947815 | I129: =G129*(1-H129)*(1-E28) -> 2.10577694e-07 | J129: 0 | K129: =G129*(1-J129)*(1-E28) -> 4.035214985e-06
B130: 100 | C130: 9.07738428e-05 | D130: 0 | E130: =0 -> 0 | F130: =C130*I28+D130*J28+E130*K28 -> 8.451239029e-05 | G130: =((C130*(1-I28))-(D130*J28)+(E130*(1-K28)))*F28*G28 -> 4.174301676e-06 | H130: 0.947815 | I130: =G130*(1-H130)*(1-E28) -> 1.960523397e-07 | J130: 0 | K130: =G130*(1-J130)*(1-E28) -> 3.756871509e-06
B131: Sum of Emissions over 100 years | G131: =SUM(G31:G130) -> 0.06658288629 | I131: =SUM(I31:I130) -> 0.01285109207 | K131: =SUM(K31:K130) -> 0.017897265
B133: Section 7.2 IPCC First Order Decay Model for Food Scraps
C134: ANDOC (MT C/dry short ton waste) | D134: Decay Rate (k) | E134: Oxidation Factor | F134: FCH4 | G134: Mass CH4:C | H134: M (months) | I134: ANDOCys | J134: ANDOCdly | K134: ANDOCdsy
C135: ='Avoided Emissions'!E9*'Avoided Emissions'!F9*'CA-GREET4.0'!M14 -> 0.3810175908 | D135: ='Avoided Emissions'!G9 -> 0.19 | E135: 0.1 | F135: 0.5 | G135: ='CA-GREET4.0'!E11/'CA-GREET4.0'!E10 -> 1.333333333 | H135: 6 | I135: =EXP(-D135) -> 0.8269591339 | J135: =((1/D135)*(EXP(-(D135*(1-H135/12)))-EXP(-D135))-((H135/12)*EXP(-D135))) -> 0.0202772779 | K135: =((1/D135)*(1-EXP(-(D135*(1-H135/12))))+(H135/12)) -> 0.9769845554
B136: Methane Generation | H136: Gas Collection Scenario 1: Typical Phased | J136: Gas Collection Scenario 2: Phased with Shutdown
B137: Year | C137: ANDOC ys | D137: ANDOC dly | E137: ANDOC dsy | F137: ANDOC ye | G137: MT CH4 Gen/dry short ton | H137: Gas Collection Efficiency (%) | I137: MT CH4 Emitted/dry short ton | J137: Gas Collection Efficiency (%) | K137: MT CH4 Emitted/dry short ton
B138: 1 | C138: 0 | D138: 0 | E138: =C135 -> 0.3810175908 | F138: =C138*I135+D138*J135+E138*K135 -> 0.3722483016 | G138: =((C138*(1-I135))-(D138*J135)+(E138*(1-K135)))*F135*G135 -> 0.005846192827 | H138: 0 | I138: =G138*(1-H138)*(1-E135) -> 0.005261573545 | J138: 0 | K138: =G138*(1-J138)*(1-E135) -> 0.005261573545
B139: 2 | C139: =F138 -> 0.3722483016 | D139: =E138 -> 0.3810175908 | E139: =0 -> 0 | F139: =C139*I135+D139*J135+E139*K135 -> 0.3155601326 | G139: =((C139*(1-I135))-(D139*J135)+(E139*(1-K135)))*F135*G135 -> 0.03779211261 | H139: 0 | I139: =G139*(1-H139)*(1-E135) -> 0.03401290135 | J139: 0 | K139: =G139*(1-J139)*(1-E135) -> 0.03401290135
B140: 3 | C140: 0.3155601326 | D140: 0 | E140: =0 -> 0 | F140: =C140*I135+D140*J135+E140*K135 -> 0.260955334 | G140: =((C140*(1-I135))-(D140*J135)+(E140*(1-K135)))*F135*G135 -> 0.0364031991 | H140: =0.5*0.9977 -> 0.49885 | I140: =G140*(1-H140)*(1-E135) -> 0.0164191169 | J140: =0.5*0.9977 -> 0.49885 | K140: =G140*(1-J140)*(1-E135) -> 0.0164191169
B141: 4 | C141: 0.260955334 | D141: 0 | E141: =0 -> 0 | F141: =C141*I135+D141*J135+E141*K135 -> 0.215799397 | G141: =((C141*(1-I135))-(D141*J135)+(E141*(1-K135)))*F135*G135 -> 0.030103958 | H141: =0.75*0.9977 -> 0.748275 | I141: =G141*(1-H141)*(1-E135) -> 0.006820126944 | J141: =0.7*0.9977 -> 0.69839 | K141: =G141*(1-J141)*(1-E135) -> 0.008171689295
B142: 5 | C142: 0.215799397 | D142: 0 | E142: =0 -> 0 | F142: =C142*I135+D142*J135+E142*K135 -> 0.1784572824 | G142: =((C142*(1-I135))-(D142*J135)+(E142*(1-K135)))*F135*G135 -> 0.02489474303 | H142: 0.748275 | I142: =G142*(1-H142)*(1-E135) -> 0.005639966271 | J142: =0.7*0.9977 -> 0.69839 | K142: =G142*(1-J142)*(1-E135) -> 0.006757653102
B143: 6 | C143: 0.1784572824 | D143: 0 | E143: =0 -> 0 | F143: =C143*I135+D143*J135+E143*K135 -> 0.1475768797 | G143: =((C143*(1-I135))-(D143*J135)+(E143*(1-K135)))*F135*G135 -> 0.02058693514 | H143: 0.748275 | I143: =G143*(1-H143)*(1-E135) -> 0.004664021623 | J143: =0.8*0.9977 -> 0.79816 | K143: =G143*(1-J143)*(1-E135) -> 0.00373974029
B144: 7 | C144: 0.1475768797 | D144: 0 | E144: =0 -> 0 | F144: =C144*I135+D144*J135+E144*K135 -> 0.1220400487 | G144: =((C144*(1-I135))-(D144*J135)+(E144*(1-K135)))*F135*G135 -> 0.01702455405 | H144: 0.748275 | I144: =G144*(1-H144)*(1-E135) -> 0.003856955282 | J144: 0.79816 | K144: =G144*(1-J144)*(1-E135) -> 0.003092612391
B145: 8 | C145: 0.1220400487 | D145: 0 | E145: =0 -> 0 | F145: =C145*I135+D145*J135+E145*K135 -> 0.1009221329 | G145: =((C145*(1-I135))-(D145*J135)+(E145*(1-K135)))*F135*G135 -> 0.01407861048 | H145: 0.748275 | I145: =G145*(1-H145)*(1-E135) -> 0.0031895444 | J145: 0.79816 | K145: =G145*(1-J145)*(1-E135) -> 0.002557464065
B146: 9 | C146: 0.1009221329 | D146: 0 | E146: =0 -> 0 | F146: =C146*I135+D146*J135+E146*K135 -> 0.08345847966 | G146: =((C146*(1-I135))-(D146*J135)+(E146*(1-K135)))*F135*G135 -> 0.01164243553 | H146: 0.748275 | I146: =G146*(1-H146)*(1-E135) -> 0.002637622875 | J146: 0.79816 | K146: =G146*(1-J146)*(1-E135) -> 0.002114918268
B147: 10 | C147: 0.08345847966 | D147: 0 | E147: =0 -> 0 | F147: =C147*I135+D147*J135+E147*K135 -> 0.06901675206 | G147: =((C147*(1-I135))-(D147*J135)+(E147*(1-K135)))*F135*G135 -> 0.0096278184 | H147: 0.748275 | I147: =G147*(1-H147)*(1-E135) -> 0.002181206328 | J147: 0.79816 | K147: =G147*(1-J147)*(1-E135) -> 0.001748950979
B148: 11 | C148: 0.06901675206 | D148: 0 | E148: =0 -> 0 | F148: =C148*I135+D148*J135+E148*K135 -> 0.05707403351 | G148: =((C148*(1-I135))-(D148*J135)+(E148*(1-K135)))*F135*G135 -> 0.007961812366 | H148: =0.95*0.9977 -> 0.947815 | I148: =G148*(1-H148)*(1-E135) -> 0.0003739384605 | J148: 0.79816 | K148: =G148*(1-J148)*(1-E135) -> 0.001446310987
B149: 12 | C149: 0.05707403351 | D149: 0 | E149: =0 -> 0 | F149: =C149*I135+D149*J135+E149*K135 -> 0.04719789332 | G149: =((C149*(1-I135))-(D149*J135)+(E149*(1-K135)))*F135*G135 -> 0.006584093458 | H149: 0.947815 | I149: =G149*(1-H149)*(1-E135) -> 0.0003092318254 | J149: 0.79816 | K149: =G149*(1-J149)*(1-E135) -> 0.001196040081
B150: 13 | C150: 0.04719789332 | D150: 0 | E150: =0 -> 0 | F150: =C150*I135+D150*J135+E150*K135 -> 0.03903072898 | G150: =((C150*(1-I135))-(D150*J135)+(E150*(1-K135)))*F135*G135 -> 0.005444776224 | H150: 0.947815 | I150: =G150*(1-H150)*(1-E135) -> 0.0002557220825 | J150: 0.79816 | K150: =G150*(1-J150)*(1-E135) -> 0.0009890762698
B151: 14 | C151: 0.03903072898 | D151: 0 | E151: =0 -> 0 | F151: =C151*I135+D151*J135+E151*K135 -> 0.03227681784 | G151: =((C151*(1-I135))-(D151*J135)+(E151*(1-K135)))*F135*G135 -> 0.004502607431 | H151: 0.947815 | I151: =G151*(1-H151)*(1-E135) -> 0.0002114717119 | J151: 0.79816 | K151: =G151*(1-J151)*(1-E135) -> 0.0008179256555
B152: 15 | C152: 0.03227681784 | D152: 0 | E152: =0 -> 0 | F152: =C152*I135+D152*J135+E152*K135 -> 0.02669160933 | G152: =((C152*(1-I135))-(D152*J135)+(E152*(1-K135)))*F135*G135 -> 0.003723472342 | H152: 0.947815 | I152: =G152*(1-H152)*(1-E135) -> 0.0001748784637 | J152: 0.79816 | K152: =G152*(1-J152)*(1-E135) -> 0.0006763910917
B153: 16 | C153: 0.02669160933 | D153: 0 | E153: =0 -> 0 | F153: =C153*I135+D153*J135+E153*K135 -> 0.02207287013 | G153: =((C153*(1-I135))-(D153*J135)+(E153*(1-K135)))*F135*G135 -> 0.003079159463 | H153: 0.947815 | I153: =G153*(1-H153)*(1-E135) -> 0.0001446173429 | J153: 0.79816 | K153: =G153*(1-J153)*(1-E135) -> 0.0005593477914
B154: 17 | C154: 0.02207287013 | D154: 0 | E154: =0 -> 0 | F154: =C154*I135+D154*J135+E154*K135 -> 0.01825336157 | G154: =((C154*(1-I135))-(D154*J135)+(E154*(1-K135)))*F135*G135 -> 0.002546339043 | H154: 0.947815 | I154: =G154*(1-H154)*(1-E135) -> 0.0001195926326 | J154: 0.79816 | K154: =G154*(1-J154)*(1-E135) -> 0.0004625577651
B155: 18 | C155: 0.01825336157 | D155: 0 | E155: =0 -> 0 | F155: =C155*I135+D155*J135+E155*K135 -> 0.01509478407 | G155: =((C155*(1-I135))-(D155*J135)+(E155*(1-K135)))*F135*G135 -> 0.002105718329 | H155: 0.947815 | I155: =G155*(1-H155)*(1-E135) -> 9.889821992e-05 | J155: 0.79816 | K155: =G155*(1-J155)*(1-E135) -> 0.0003825163688
B156: 19 | C156: 0.01509478407 | D156: =E155 -> 0 | E156: =0 -> 0 | F156: =C156*I135+D156*J135+E156*K135 -> 0.01248276956 | G156: =((C156*(1-I135))-(D156*J135)+(E156*(1-K135)))*F135*G135 -> 0.001741343006 | H156: 0.947815 | I156: =G156*(1-H156)*(1-E135) -> 8.178478629e-05 | J156: 0.79816 | K156: =G156*(1-J156)*(1-E135) -> 0.0003163254051
B157: 20 | C157: 0.01248276956 | D157: =E156 -> 0 | E157: =0 -> 0 | F157: =C157*I135+D157*J135+E157*K135 -> 0.01032274031 | G157: =((C157*(1-I135))-(D157*J135)+(E157*(1-K135)))*F135*G135 -> 0.001440019504 | H157: 0.947815 | I157: =G157*(1-H157)*(1-E135) -> 6.763267604e-05 | J157: 0.79816 | K157: =G157*(1-J157)*(1-E135) -> 0.000261588183
B158: 21 | C158: 0.01032274031 | D158: 0 | E158: =0 -> 0 | F158: =C158*I135+D158*J135+E158*K135 -> 0.008536484385 | G158: =((C158*(1-I135))-(D158*J135)+(E158*(1-K135)))*F135*G135 -> 0.001190837282 | H158: 0.947815 | I158: =G158*(1-H158)*(1-E135) -> 5.592945921e-05 | J158: 0.79816 | K158: =G158*(1-J158)*(1-E135) -> 0.0002163227373
B159: 22 | C159: 0.008536484385 | D159: 0 | E159: =0 -> 0 | F159: =C159*I135+D159*J135+E159*K135 -> 0.007059323734 | G159: =((C159*(1-I135))-(D159*J135)+(E159*(1-K135)))*F135*G135 -> 0.0009847737674 | H159: 0.947815 | I159: =G159*(1-H159)*(1-E135) -> 4.625137715e-05 | J159: 0.79816 | K159: =G159*(1-J159)*(1-E135) -> 0.0001788900635
B160: 23 | C160: 0.007059323734 | D160: 0 | E160: =0 -> 0 | F160: =C160*I135+D160*J135+E160*K135 -> 0.005837772241 | G160: =((C160*(1-I135))-(D160*J135)+(E160*(1-K135)))*F135*G135 -> 0.0008143676618 | H160: 0.947815 | I160: =G160*(1-H160)*(1-E135) -> 3.824799879e-05 | J160: 0.79816 | K160: =G160*(1-J160)*(1-E135) -> 0.000147934772
B161: 24 | C161: 0.005837772241 | D161: 0 | E161: =0 -> 0 | F161: =C161*I135+D161*J135+E161*K135 -> 0.004827599077 | G161: =((C161*(1-I135))-(D161*J135)+(E161*(1-K135)))*F135*G135 -> 0.0006734487763 | H161: 0.947815 | I161: =G161*(1-H161)*(1-E135) -> 3.162953195e-05 | J161: 0.79816 | K161: =G161*(1-J161)*(1-E135) -> 0.0001223360109
B162: 25 | C162: 0.004827599077 | D162: 0 | E162: =0 -> 0 | F162: =C162*I135+D162*J135+E162*K135 -> 0.003992227152 | G162: =((C162*(1-I135))-(D162*J135)+(E162*(1-K135)))*F135*G135 -> 0.0005569146168 | H162: 0.947815 | I162: =G162*(1-H162)*(1-E135) -> 2.615633035e-05 | J162: 0.79816 | K162: =G162*(1-J162)*(1-E135) -> 0.0001011668816
B163: 26 | C163: 0.003992227152 | D163: 0 | E163: =0 -> 0 | F163: =C163*I135+D163*J135+E163*K135 -> 0.003301408708 | G163: =((C163*(1-I135))-(D163*J135)+(E163*(1-K135)))*F135*G135 -> 0.0004605456292 | H163: 0.947815 | I163: =G163*(1-H163)*(1-E135) -> 2.163021629e-05 | J163: 0.79816 | K163: =G163*(1-J163)*(1-E135) -> 8.366087682e-05
B164: 27 | C164: 0.003301408708 | D164: 0 | E164: =0 -> 0 | F164: =C164*I135+D164*J135+E164*K135 -> 0.002730130086 | G164: =((C164*(1-I135))-(D164*J135)+(E164*(1-K135)))*F135*G135 -> 0.0003808524147 | H164: 0.947815 | I164: =G164*(1-H164)*(1-E135) -> 1.788730493e-05 | J164: 0.79816 | K164: =G164*(1-J164)*(1-E135) -> 6.918412624e-05
B165: 28 | C165: 0.002730130086 | D165: 0 | E165: =0 -> 0 | F165: =C165*I135+D165*J135+E165*K135 -> 0.002257706011 | G165: =((C165*(1-I135))-(D165*J135)+(E165*(1-K135)))*F135*G135 -> 0.000314949383 | H165: 0.947815 | I165: =G165*(1-H165)*(1-E135) -> 1.47920702e-05 | J165: 0.79816 | K165: =G165*(1-J165)*(1-E135) -> 5.721244512e-05
B166: 29 | C166: 0.002257706011 | D166: 0 | E166: =0 -> 0 | F166: =C166*I135+D166*J135+E166*K135 -> 0.001867030608 | G166: =((C166*(1-I135))-(D166*J135)+(E166*(1-K135)))*F135*G135 -> 0.000260450269 | H166: 0.947815 | I166: =G166*(1-H166)*(1-E135) -> 1.223243756e-05 | J166: 0.79816 | K166: =G166*(1-J166)*(1-E135) -> 4.731235407e-05
B167: 30 | C167: 0.001867030608 | D167: 0 | E167: =0 -> 0 | F167: =C167*I135+D167*J135+E167*K135 -> 0.001543958015 | G167: =((C167*(1-I135))-(D167*J135)+(E167*(1-K135)))*F135*G135 -> 0.0002153817289 | H167: 0.947815 | I167: =G167*(1-H167)*(1-E135) -> 1.011572597e-05 | J167: 0.79816 | K167: =G167*(1-J167)*(1-E135) -> 3.912538334e-05
B168: 31 | C168: 0.001543958015 | D168: 0 | E168: =0 -> 0 | F168: =C168*I135+D168*J135+E168*K135 -> 0.001276790183 | G168: =((C168*(1-I135))-(D168*J135)+(E168*(1-K135)))*F135*G135 -> 0.000178111888 | H168: 0.947815 | I168: =G168*(1-H168)*(1-E135) -> 8.365291987e-06 | J168: 0.79816 | K168: =G168*(1-J168)*(1-E135) -> 3.235509312e-05
B169: 32 | C169: 0.001276790183 | D169: 0 | E169: =0 -> 0 | F169: =C169*I135+D169*J135+E169*K135 -> 0.001055853304 | G169: =((C169*(1-I135))-(D169*J135)+(E169*(1-K135)))*F135*G135 -> 0.0001472912526 | H169: 0.947815 | I169: =G169*(1-H169)*(1-E135) -> 6.917754617e-06 | J169: 0.79816 | K169: =G169*(1-J169)*(1-E135) -> 2.675633979e-05
B170: 33 | C170: 0.001055853304 | D170: 0 | E170: =0 -> 0 | F170: =C170*I135+D170*J135+E170*K135 -> 0.0008731475335 | G170: =((C170*(1-I135))-(D170*J135)+(E170*(1-K135)))*F135*G135 -> 0.0001218038467 | H170: 0.947815 | I170: =G170*(1-H170)*(1-E135) -> 5.720700367e-06 | J170: 0.79816 | K170: =G170*(1-J170)*(1-E135) -> 2.212639958e-05
B171: 34 | C171: 0.0008731475335 | D171: 0 | E171: =0 -> 0 | F171: =C171*I135+D171*J135+E171*K135 -> 0.0007220573281 | G171: =((C171*(1-I135))-(D171*J135)+(E171*(1-K135)))*F135*G135 -> 0.0001007268036 | H171: 0.947815 | I171: =G171*(1-H171)*(1-E135) -> 4.730785421e-06 | J171: 0.79816 | K171: =G171*(1-J171)*(1-E135) -> 1.829762823e-05
B172: 35 | C172: 0.0007220573281 | D172: 0 | E172: =0 -> 0 | F172: =C172*I135+D172*J135+E172*K135 -> 0.0005971119027 | G172: =((C172*(1-I135))-(D172*J135)+(E172*(1-K135)))*F135*G135 -> 8.329695026e-05 | H172: 0.947815 | I172: =G172*(1-H172)*(1-E135) -> 3.912166215e-06 | J172: 0.79816 | K172: =G172*(1-J172)*(1-E135) -> 1.51313908e-05
B173: 36 | C173: 0.0005971119027 | D173: 0 | E173: =0 -> 0 | F173: =C173*I135+D173*J135+E173*K135 -> 0.0004937871419 | G173: =((C173*(1-I135))-(D173*J135)+(E173*(1-K135)))*F135*G135 -> 6.888317385e-05 | H173: 0.947815 | I173: =G173*(1-H173)*(1-E135) -> 3.235201585e-06 | J173: 0.79816 | K173: =G173*(1-J173)*(1-E135) -> 1.251304183e-05
B174: 37 | C174: 0.0004937871419 | D174: 0 | E174: =0 -> 0 | F174: =C174*I135+D174*J135+E174*K135 -> 0.0004083417872 | G174: =((C174*(1-I135))-(D174*J135)+(E174*(1-K135)))*F135*G135 -> 5.696356979e-05 | H174: 0.947815 | I174: =G174*(1-H174)*(1-E135) -> 2.675379501e-06 | J174: 0.79816 | K174: =G174*(1-J174)*(1-E135) -> 1.034777423e-05
B175: 38 | C175: 0.0004083417872 | D175: 0 | E175: =0 -> 0 | F175: =C175*I135+D175*J135+E175*K135 -> 0.0003376819707 | G175: =((C175*(1-I135))-(D175*J135)+(E175*(1-K135)))*F135*G135 -> 4.710654434e-05 | H175: 0.947815 | I175: =G175*(1-H175)*(1-E135) -> 2.212429515e-06 | J175: 0.79816 | K175: =G175*(1-J175)*(1-E135) -> 8.557186419e-06
B176: 39 | C176: 0.0003376819707 | D176: 0 | E176: =0 -> 0 | F176: =C176*I135+D176*J135+E176*K135 -> 0.0002792491901 | G176: =((C176*(1-I135))-(D176*J135)+(E176*(1-K135)))*F135*G135 -> 3.895518711e-05 | H176: 0.947815 | I176: =G176*(1-H176)*(1-E135) -> 1.829588795e-06 | J176: 0.79816 | K176: =G176*(1-J176)*(1-E135) -> 7.07644347e-06
B177: 40 | C177: 0.0002792491901 | D177: 0 | E177: =0 -> 0 | F177: =C177*I135+D177*J135+E177*K135 -> 0.0002309276684 | G177: =((C177*(1-I135))-(D177*J135)+(E177*(1-K135)))*F135*G135 -> 3.22143478e-05 | H177: 0.947815 | I177: =G177*(1-H177)*(1-E135) -> 1.512995166e-06 | J177: 0.79816 | K177: =G177*(1-J177)*(1-E135) -> 5.851929563e-06
B178: 41 | C178: 0.0002309276684 | D178: 0 | E178: =0 -> 0 | F178: =C178*I135+D178*J135+E178*K135 -> 0.0001909677446 | G178: =((C178*(1-I135))-(D178*J135)+(E178*(1-K135)))*F135*G135 -> 2.663994915e-05 | H178: 0.947815 | I178: =G178*(1-H178)*(1-E135) -> 1.251185172e-06 | J178: 0.79816 | K178: =G178*(1-J178)*(1-E135) -> 4.839306604e-06
B179: 42 | C179: 0.0001909677446 | D179: 0 | E179: =0 -> 0 | F179: =C179*I135+D179*J135+E179*K135 -> 0.0001579225207 | G179: =((C179*(1-I135))-(D179*J135)+(E179*(1-K135)))*F135*G135 -> 2.203014928e-05 | H179: 0.947815 | I179: =G179*(1-H179)*(1-E135) -> 1.034679006e-06 | J179: 0.79816 | K179: =G179*(1-J179)*(1-E135) -> 4.001908798e-06
B180: 43 | C180: 0.0001579225207 | D180: 0 | E180: =0 -> 0 | F180: =C180*I135+D180*J135+E180*K135 -> 0.000130595471 | G180: =((C180*(1-I135))-(D180*J135)+(E180*(1-K135)))*F135*G135 -> 1.821803317e-05 | H180: 0.947815 | I180: =G180*(1-H180)*(1-E135) -> 8.556372549e-07 | J180: 0.79816 | K180: =G180*(1-J180)*(1-E135) -> 3.309415033e-06
B181: 44 | C181: 0.000130595471 | D181: 0 | E181: =0 -> 0 | F181: =C181*I135+D181*J135+E181*K135 -> 0.0001079971176 | G181: =((C181*(1-I135))-(D181*J135)+(E181*(1-K135)))*F135*G135 -> 1.506556893e-05 | H181: 0.947815 | I181: =G181*(1-H181)*(1-E135) -> 7.075770433e-07 | J181: 0.79816 | K181: =G181*(1-J181)*(1-E135) -> 2.73675099e-06
B182: 45 | C182: 0.0001079971176 | D182: 0 | E182: =0 -> 0 | F182: =C182*I135+D182*J135+E182*K135 -> 8.930920281e-05 | G182: =((C182*(1-I135))-(D182*J135)+(E182*(1-K135)))*F135*G135 -> 1.245860984e-05 | H182: 0.947815 | I182: =G182*(1-H182)*(1-E135) -> 5.851372989e-07 | J182: 0.79816 | K182: =G182*(1-J182)*(1-E135) -> 2.263181228e-06
B183: 46 | C183: 8.930920281e-05 | D183: 0 | E183: =0 -> 0 | F183: =C183*I135+D183*J135+E183*K135 -> 7.385506101e-05 | G183: =((C183*(1-I135))-(D183*J135)+(E183*(1-K135)))*F135*G135 -> 1.03027612e-05 | H183: 0.947815 | I183: =G183*(1-H183)*(1-E135) -> 4.838846339e-07 | J183: 0.79816 | K183: =G183*(1-J183)*(1-E135) -> 1.871558389e-06
B184: 47 | C184: 7.385506101e-05 | D184: 0 | E184: =0 -> 0 | F184: =C184*I135+D184*J135+E184*K135 -> 6.107511729e-05 | G184: =((C184*(1-I135))-(D184*J135)+(E184*(1-K135)))*F135*G135 -> 8.51996248e-06 | H184: 0.947815 | I184: =G184*(1-H184)*(1-E135) -> 4.001528178e-07 | J184: 0.79816 | K184: =G184*(1-J184)*(1-E135) -> 1.547702304e-06
B185: 48 | C185: 6.107511729e-05 | D185: 0 | E185: =0 -> 0 | F185: =C185*I135+D185*J135+E185*K135 -> 5.05066261e-05 | G185: =((C185*(1-I135))-(D185*J135)+(E185*(1-K135)))*F135*G135 -> 7.045660793e-06 | H185: 0.947815 | I185: =G185*(1-H185)*(1-E135) -> 3.309100277e-07 | J185: 0.79816 | K185: =G185*(1-J185)*(1-E135) -> 1.279886557e-06
B186: 49 | C186: 5.05066261e-05 | D186: 0 | E186: =0 -> 0 | F186: =C186*I135+D186*J135+E186*K135 -> 4.176691578e-05 | G186: =((C186*(1-I135))-(D186*J135)+(E186*(1-K135)))*F135*G135 -> 5.826473548e-06 | H186: 0.947815 | I186: =G186*(1-H186)*(1-E135) -> 2.736490699e-07 | J186: 0.79816 | K186: =G186*(1-J186)*(1-E135) -> 1.058413879e-06
B187: 50 | C187: 4.176691578e-05 | D187: 0 | E187: =0 -> 0 | F187: =C187*I135+D187*J135+E187*K135 -> 3.45395325e-05 | G187: =((C187*(1-I135))-(D187*J135)+(E187*(1-K135)))*F135*G135 -> 4.818255519e-06 | H187: 0.947815 | I187: =G187*(1-H187)*(1-E135) -> 2.262965978e-07 | J187: 0.79816 | K187: =G187*(1-J187)*(1-E135) -> 8.752650246e-07
B188: 51 | C188: 3.45395325e-05 | D188: 0 | E188: =0 -> 0 | F188: =C188*I135+D188*J135+E188*K135 -> 2.856278188e-05 | G188: =((C188*(1-I135))-(D188*J135)+(E188*(1-K135)))*F135*G135 -> 3.984500411e-06 | H188: 0.947815 | I188: =G188*(1-H188)*(1-E135) -> 1.871380386e-07 | J188: 0.79816 | K188: =G188*(1-J188)*(1-E135) -> 7.238084067e-07
B189: 52 | C189: 2.856278188e-05 | D189: 0 | E189: =0 -> 0 | F189: =C189*I135+D189*J135+E189*K135 -> 2.362025337e-05 | G189: =((C189*(1-I135))-(D189*J135)+(E189*(1-K135)))*F135*G135 -> 3.295019009e-06 | H189: 0.947815 | I189: =G189*(1-H189)*(1-E135) -> 1.547555103e-07 | J189: 0.79816 | K189: =G189*(1-J189)*(1-E135) -> 5.985599731e-07
B190: 53 | C190: 2.362025337e-05 | D190: 0 | E190: =0 -> 0 | F190: =C190*I135+D190*J135+E190*K135 -> 1.953298427e-05 | G190: =((C190*(1-I135))-(D190*J135)+(E190*(1-K135)))*F135*G135 -> 2.724846066e-06 | H190: 0.947815 | I190: =G190*(1-H190)*(1-E135) -> 1.279764828e-07 | J190: 0.79816 | K190: =G190*(1-J190)*(1-E135) -> 4.94984637e-07
B191: 54 | C191: 1.953298427e-05 | D191: 0 | E191: =0 -> 0 | F191: =C191*I135+D191*J135+E191*K135 -> 1.615297975e-05 | G191: =((C191*(1-I135))-(D191*J135)+(E191*(1-K135)))*F135*G135 -> 2.253336343e-06 | H191: 0.947815 | I191: =G191*(1-H191)*(1-E135) -> 1.058313214e-07 | J191: 0.79816 | K191: =G191*(1-J191)*(1-E135) -> 4.093320667e-07
B192: 55 | C192: 1.615297975e-05 | D192: 0 | E192: =0 -> 0 | F192: =C192*I135+D192*J135+E192*K135 -> 1.335785415e-05 | G192: =((C192*(1-I135))-(D192*J135)+(E192*(1-K135)))*F135*G135 -> 1.863417071e-06 | H192: 0.947815 | I192: =G192*(1-H192)*(1-E135) -> 8.751817785e-08 | J192: 0.79816 | K192: =G192*(1-J192)*(1-E135) -> 3.385008914e-07
B193: 56 | C193: 1.335785415e-05 | D193: 0 | E193: =0 -> 0 | F193: =C193*I135+D193*J135+E193*K135 -> 1.10463995e-05 | G193: =((C193*(1-I135))-(D193*J135)+(E193*(1-K135)))*F135*G135 -> 1.540969767e-06 | H193: 0.947815 | I193: =G193*(1-H193)*(1-E135) -> 7.237395656e-08 | J193: 0.79816 | K193: =G193*(1-J193)*(1-E135) -> 2.79926404e-07
B194: 57 | C194: 1.10463995e-05 | D194: 0 | E194: =0 -> 0 | F194: =C194*I135+D194*J135+E194*K135 -> 9.134920962e-06 | G194: =((C194*(1-I135))-(D194*J135)+(E194*(1-K135)))*F135*G135 -> 1.274319024e-06 | H194: 0.947815 | I194: =G194*(1-H194)*(1-E135) -> 5.985030444e-08 | J194: 0.79816 | K194: =G194*(1-J194)*(1-E135) -> 2.314876966e-07
B195: 58 | C195: 9.134920962e-06 | D195: 0 | E195: =0 -> 0 | F195: =C195*I135+D195*J135+E195*K135 -> 7.554206327e-06 | G195: =((C195*(1-I135))-(D195*J135)+(E195*(1-K135)))*F135*G135 -> 1.053809756e-06 | H195: 0.947815 | I195: =G195*(1-H195)*(1-E135) -> 4.949375592e-08 | J195: 0.79816 | K195: =G195*(1-J195)*(1-E135) -> 1.914308651e-07
B196: 59 | C196: 7.554206327e-06 | D196: 0 | E196: =0 -> 0 | F196: =C196*I135+D196*J135+E196*K135 -> 6.247019922e-06 | G196: =((C196*(1-I135))-(D196*J135)+(E196*(1-K135)))*F135*G135 -> 8.714576035e-07 | H196: 0.947815 | I196: =G196*(1-H196)*(1-E135) -> 4.092931353e-08 | J196: 0.79816 | K196: =G196*(1-J196)*(1-E135) -> 1.583055024e-07
B197: 60 | C197: 6.247019922e-06 | D197: 0 | E197: =0 -> 0 | F197: =C197*I135+D197*J135+E197*K135 -> 5.166030184e-06 | G197: =((C197*(1-I135))-(D197*J135)+(E197*(1-K135)))*F135*G135 -> 7.20659825e-07 | H197: 0.947815 | I197: =G197*(1-H197)*(1-E135) -> 3.384686967e-08 | J197: 0.79816 | K197: =G197*(1-J197)*(1-E135) -> 1.309121812e-07
B198: 61 | C198: 5.166030184e-06 | D198: 0 | E198: =0 -> 0 | F198: =C198*I135+D198*J135+E198*K135 -> 4.272095847e-06 | G198: =((C198*(1-I135))-(D198*J135)+(E198*(1-K135)))*F135*G135 -> 5.959562248e-07 | H198: 0.947815 | I198: =G198*(1-H198)*(1-E135) -> 2.798997803e-08 | J198: 0 | K198: =G198*(1-J198)*(1-E135) -> 5.363606023e-07
B199: 62 | C199: 4.272095847e-06 | D199: 0 | E199: =0 -> 0 | F199: =C199*I135+D199*J135+E199*K135 -> 3.532848682e-06 | G199: =((C199*(1-I135))-(D199*J135)+(E199*(1-K135)))*F135*G135 -> 4.928314435e-07 | H199: 0.947815 | I199: =G199*(1-H199)*(1-E135) -> 2.314656799e-08 | J199: 0 | K199: =G199*(1-J199)*(1-E135) -> 4.435482992e-07
B200: 63 | C200: 3.532848682e-06 | D200: 0 | E200: =0 -> 0 | F200: =C200*I135+D200*J135+E200*K135 -> 2.921521486e-06 | G200: =((C200*(1-I135))-(D200*J135)+(E200*(1-K135)))*F135*G135 -> 4.075514637e-07 | H200: 0.947815 | I200: =G200*(1-H200)*(1-E135) -> 1.914126582e-08 | J200: 0 | K200: =G200*(1-J200)*(1-E135) -> 3.667963173e-07
B201: 64 | C201: 2.921521486e-06 | D201: 0 | E201: =0 -> 0 | F201: =C201*I135+D201*J135+E201*K135 -> 2.415978878e-06 | G201: =((C201*(1-I135))-(D201*J135)+(E201*(1-K135)))*F135*G135 -> 3.370284055e-07 | H201: 0.947815 | I201: =G201*(1-H201)*(1-E135) -> 1.582904461e-08 | J201: 0 | K201: =G201*(1-J201)*(1-E135) -> 3.033255649e-07
B202: 65 | C202: 2.415978878e-06 | D202: 0 | E202: =0 -> 0 | F202: =C202*I135+D202*J135+E202*K135 -> 1.997915801e-06 | G202: =((C202*(1-I135))-(D202*J135)+(E202*(1-K135)))*F135*G135 -> 2.787087183e-07 | H202: 0.947815 | I202: =G202*(1-H202)*(1-E135) -> 1.308997302e-08 | J202: 0 | K202: =G202*(1-J202)*(1-E135) -> 2.508378465e-07
B203: 66 | C203: =F202 -> 1.997915801e-06 | D203: 0 | E203: =0 -> 0 | F203: =C203*I135+D203*J135+E203*K135 -> 1.65219472e-06 | G203: =((C203*(1-I135))-(D203*J135)+(E203*(1-K135)))*F135*G135 -> 2.304807203e-07 | H203: 0.947815 | I203: =G203*(1-H203)*(1-E135) -> 1.082487275e-08 | J203: 0 | K203: =G203*(1-J203)*(1-E135) -> 2.074326483e-07
B204: 67 | C204: 1.65219472e-06 | D204: 0 | E204: =0 -> 0 | F204: =C204*I135+D204*J135+E204*K135 -> 1.366297515e-06 | G204: =((C204*(1-I135))-(D204*J135)+(E204*(1-K135)))*F135*G135 -> 1.905981369e-07 | H204: 0.947815 | I204: =G204*(1-H204)*(1-E135) -> 8.951727395e-09 | J204: 0 | K204: =G204*(1-J204)*(1-E135) -> 1.715383232e-07
... 246 more rows

Sheet CA-GREET4.0
B2: CA-GREET4.0 Emission Factors & Specifications | H2: Unit Conversion
B3: Category | C3: Sub-Category | D3: Name | E3: Value | F3: Unit | H3: Energy | I3: 1 kJ | J3: 1 MJ | K3: 1 kWh | L3: 1 BTU | M3: 1 MMBtu
B4: Fuel Specifications | C4: Methane | D4: Energy Density | E4: 0.9601 | F4: MJ/ft3 @60°F, LHV | H4: Joule (J) | I4: 1000 | J4: 1000000 | K4: 3600000 | L4: 1055.05585 | M4: 1055055850
D5: Specific Density | E5: 19.2 | F5: grams/ft3 | H5: Kilojoule (kJ) | I5: 1 | J5: 1000 | K5: 3600 | L5: 1.05505585 | M5: 1055055.85
D6: Heating Value Ratio | E6: 0.901 | F6: LHV/HHV | H6: Megajoule (MJ) | I6: 0.001 | J6: 1 | K6: 3.6 | L6: 0.00105505585 | M6: 1055.05585
C7: Natural Gas | D7: Heating Value Ratio | E7: 0.903 | H7: Watt-hour (Wh) | I7: 0.2777777778 | J7: 277.7777778 | K7: 1000 | L7: 0.2930710694 | M7: 293071.0694
C8: Liquefied Natural Gas (LNG) | D8: Energy Density | E8: 78.8 | F8: MJ/gal @60°F, LHV | H8: Kilowatt-hour (kWh) | I8: 0.0002777777778 | J8: 0.2777777778 | K8: 1 | L8: 0.0002930710694 | M8: 293.0710694
C9: Liquefied Petroleum Gas (LPG) | D9: Energy Density | E9: 89.6 | H9: British Thermal Unit (BTU) | I9: 0.9478171227 | J9: 947.8171227 | K9: 3412.141642 | L9: 1 | M9: 1000000
B10: Greenhouse Gas Properties | C10: Molar Mass | D10: Carbon (C) | E10: 12 | F10: g/mol | H10: Million British Thermal Unit (MMBtu) | I10: 9.478171227e-07 | J10: 0.0009478171227 | K10: 0.003412141642 | L10: 1e-06 | M10: 1
D11: Methane (CH4) | E11: 16 | H11: Mass | I11: 1 g | J11: 1 kg | K11: 1 MT | L11: 1 lb | M11: 1 short ton
D12: Carbon Dioxide (CO2) | E12: 44 | H12: Gram (g) | I12: 1 | J12: 1000 | K12: 1000000 | L12: 453.59237 | M12: 907184.74
C13: Global Warming Potential (GWP) | D13: Methane (CH4) | E13: 25 | F13: gCO2e/gCH4 | H13: Kilogram (kg) | I13: 0.001 | J13: 1 | K13: 1000 | L13: 0.45359237 | M13: 907.18474
D14: Nitrous Oxide (N2O) | E14: 298 | F14: gCO2e/gN2O | H14: Metric Ton (MT) | I14: 1e-06 | J14: 0.001 | K14: 1 | L14: 0.00045359237 | M14: 0.90718474
B15: Feedstock Collection | C15: Truck Transport | D15: HHDT | E15: 218 | F15: gCO2e/short ton-mile | H15: Pound (lb) | I15: 0.002204622622 | J15: 2.204622622 | K15: 2204.622622 | L15: 1 | M15: 2000
B16: Anaerobic Digestion and Biogas Upgrading | C16: Process Energy | D16: Biogas | E16: 1117.475 | F16: gCO2e/MMBtu, LHV | H16: Short Ton (US Ton) | I16: 1.102311311e-06 | J16: 0.001102311311 | K16: 1.102311311 | L16: 0.0005 | M16: 1
D17: ='Pathway Summary'!C31 -> North American Natural Gas | E17: 75496 | F17: gCO2e/MMBtu, LHV | H17: Volume | I17: 1 m3 | J17: 1 ml | K17: 1 L | L17: 1 gal | M17: 1 ft3
D18: ='Pathway Summary'!C34 -> LPG or Propane | E18: 7345.277403 | F18: gCO2e/gallon | H18: Cubic Meter (m3) | I18: 1 | J18: 1e-06 | K18: 0.001 | L18: 0.003785411 | M18: 0.028316847
D19: ='Pathway Summary'!C35 -> Diesel | E19: 12308 | H19: Milliliter (ml) | I19: 1000000 | J19: 1 | K19: 1000 | L19: 3785.411 | M19: 28316.847
C20: Tail Gas Destruction | D20: In Flare or Thermal Oxidizer (TO) | E20: 1117.475 | F20: gCO2e/MMBtu, LHV | H20: Liter (L) | I20: 1000 | J20: 0.001 | K20: 1 | L20: 3.785411 | M20: 28.316847
D21: Flaring Methane Slip | E21: 31.587 | F21: g CH4 / MMBtu, LHV | H21: Gallon (gal) | I21: 264.1721071 | J21: 0.0002641721071 | K21: 0.2641721071 | L21: 1 | M21: 7.480521138
C22: Fugitive Methane Defaults | D22: Digester Leakage and Biogas Upgrading | E22: 0.01 | H22: Cubic Foot (ft3) | I22: 35.31466621 | J22: 3.531466621e-05 | K22: 0.03531466621 | L22: 0.1336805259 | M22: 1
B23: Biomethane Transport | C23: Pipeline | D23: Fugitives | E23: 3e-06 | F23: %/mile
D24: Transport Energy | E24: 0.00389 | F24: gCO2e/MJ-mile, LHV
C25: LNG Truck | D25: LNG Transport | E25: 0.00658 | F25: gCO2e/MJ-mile, LHV
D26: Fugitive CH4 - With Boil-Off Recovery | E26: 0.00312 | F26: %
D27: Fugitive CH4 - Without Boil-Off Recovery | E27: 0.01559
C28: Compression | D28: at Fueling Station | E28: 2.96363944 | F28: gCO2e/MJ, LHV
B29: Vehicle Emissions | C29: Tailpipe Combustion (excluding CO2) | E29: 5.51
B30: Grid Electricity | C30: 2021 eGRID Region | D30: U.S. Average | E30: 474.1481811 | F30: gCO2e/kWh
D31: AKGD | E31: 739.3736966
D32: AKMS | E32: 305.0595453
D33: AZNM | E33: 452.5979964
D34: CAMX | E34: 329.315509
D35: ERCT | E35: 470.4603747
D36: FRCC | E36: 500.0897813
D37: HIMS | E37: 729.769644
D38: HIOA | E38: 993.0409075
D39: MROE | E39: 835.1729646
D40: MROW | E40: 522.2755266
D41: NEWE | E41: 343.9333755
D42: NWPP | E42: 341.7320862
D43: NYCW | E43: 522.5910041
D44: NYLI | E44: 603.0605646
D45: NYUP | E45: 153.9203041
D46: PRMS | E46: 864.8480365
D47: RFCE | E47: 403.0232799
D48: RFCM | E48: 647.6560142
D49: RFCW | E49: 571.7384883
D50: RMPA | E50: 581.2447114
D51: SPNO | E51: 518.5779611
D52: SPSO | E52: 538.184671
D53: SRMV | E53: 480.1475905
D54: SRMW | E54: 820.1296942
D55: SRSO | E55: 508.7158303
D56: SRTV | E56: 503.5619942
D57: SRVC | E57: 370.789402
D58: Brazil | E58: 110.5727336
D59: Canada | E59: 142.5873345
D60: User Defined
